{"text_format":"1","workbook":"xlsx","n_sheets":5,"sheets":["Day Trading","Trade Log","LIVE Report","PAPER Report","Lists"],"not_rendered":{"charts":0,"images":1,"macros":1,"external_links":0,"defined_names":5,"comments":2,"pivot_tables":0},"unopened":[],"bounds":{"document_bytes":16777216,"sheet_cells":100000,"rows_first":2000,"rows_last":500,"rows_between":2000,"halvings":0,"cell_chars":16384,"cell_head_chars":4096},"cells_cut":0,"cells_raw":0,"read":"whole","date_system":"1900"}

{"sheet":"Day Trading","index":0,"n_rows":20,"n_cols":16,"rows_kept":20,"cut":false,"hidden":false,"merged":[[2,6,2,15],[4,7,4,13]]}
[]
[]
[null,null,null,null,null,null,"TRADE LOG - INTRADAY TRADING"]
[]
[null,null,null,null,null,null,null,"YOUR NAME HERE"]
[]
[null,"DATE","TICKER","CONTRACTS","SCALING OUT ","STRIKE PRICE","DELTA","EXPIRY","CALL OR PUT","BTO","ENTRY TIME","STC","EXIT TIME","TOTAL COST","ROR","P&L"]
[null,null,null,null,null,null,null,null,null,null,null,null,null,{"$f":"TradeLog2[[#This Row],[CONTRACTS]]*TradeLog2[[#This Row],[BTO]] *100","v":0},{"$f":"IFERROR(TradeLog2[[#This Row],[P&L]]/TradeLog2[[#This Row],[TOTAL COST]], 0)","v":0},{"$f":"IF(AND(TradeLog2[[#This Row],[BTO]]=\"\", TradeLog2[[#This Row],[STC]]=\"\"), 0, (TradeLog2[[#This Row],[STC]]-TradeLog2[[#This Row],[BTO]])*100)*TradeLog2[[#This Row],[CONTRACTS]]","v":0}]
[null,null,null,null,null,null,null,null,null,null,null,null,null,{"$f":"TradeLog2[[#This Row],[CONTRACTS]]*TradeLog2[[#This Row],[BTO]] *100","v":0},{"$f":"IFERROR(TradeLog2[[#This Row],[P&L]]/TradeLog2[[#This Row],[TOTAL COST]], 0)","v":0},{"$f":"IF(AND(TradeLog2[[#This Row],[BTO]]=\"\", TradeLog2[[#This Row],[STC]]=\"\"), 0, (TradeLog2[[#This Row],[STC]]-TradeLog2[[#This Row],[BTO]])*100)*TradeLog2[[#This Row],[CONTRACTS]]","v":0}]
[null,null,null,null,null,null,null,null,null,null,null,null,null,{"$f":"TradeLog2[[#This Row],[CONTRACTS]]*TradeLog2[[#This Row],[BTO]] *100","v":0},{"$f":"IFERROR(TradeLog2[[#This Row],[P&L]]/TradeLog2[[#This Row],[TOTAL COST]], 0)","v":0},{"$f":"IF(AND(TradeLog2[[#This Row],[BTO]]=\"\", TradeLog2[[#This Row],[STC]]=\"\"), 0, (TradeLog2[[#This Row],[STC]]-TradeLog2[[#This Row],[BTO]])*100)*TradeLog2[[#This Row],[CONTRACTS]]","v":0}]
[null,null,null,null,null,null,null,null,null,null,null,null,null,{"$f":"TradeLog2[[#This Row],[CONTRACTS]]*TradeLog2[[#This Row],[BTO]] *100","v":0},{"$f":"IFERROR(TradeLog2[[#This Row],[P&L]]/TradeLog2[[#This Row],[TOTAL COST]], 0)","v":0},{"$f":"IF(AND(TradeLog2[[#This Row],[BTO]]=\"\", TradeLog2[[#This Row],[STC]]=\"\"), 0, (TradeLog2[[#This Row],[STC]]-TradeLog2[[#This Row],[BTO]])*100)*TradeLog2[[#This Row],[CONTRACTS]]","v":0}]
[null,null,null,null,null,null,null,null,null,null,null,null,null,{"$f":"TradeLog2[[#This Row],[CONTRACTS]]*TradeLog2[[#This Row],[BTO]] *100","v":0},{"$f":"IFERROR(TradeLog2[[#This Row],[P&L]]/TradeLog2[[#This Row],[TOTAL COST]], 0)","v":0},{"$f":"IF(AND(TradeLog2[[#This Row],[BTO]]=\"\", TradeLog2[[#This Row],[STC]]=\"\"), 0, (TradeLog2[[#This Row],[STC]]-TradeLog2[[#This Row],[BTO]])*100)*TradeLog2[[#This Row],[CONTRACTS]]","v":0}]
[null,null,null,null,null,null,null,null,null,null,null,null,null,{"$f":"TradeLog2[[#This Row],[CONTRACTS]]*TradeLog2[[#This Row],[BTO]] *100","v":0},{"$f":"IFERROR(TradeLog2[[#This Row],[P&L]]/TradeLog2[[#This Row],[TOTAL COST]], 0)","v":0},{"$f":"IF(AND(TradeLog2[[#This Row],[BTO]]=\"\", TradeLog2[[#This Row],[STC]]=\"\"), 0, (TradeLog2[[#This Row],[STC]]-TradeLog2[[#This Row],[BTO]])*100)*TradeLog2[[#This Row],[CONTRACTS]]","v":0}]
[null,null,null,null,null,null,null,null,null,null,null,null,null,{"$f":"TradeLog2[[#This Row],[CONTRACTS]]*TradeLog2[[#This Row],[BTO]] *100","v":0},{"$f":"IFERROR(TradeLog2[[#This Row],[P&L]]/TradeLog2[[#This Row],[TOTAL COST]], 0)","v":0},{"$f":"IF(AND(TradeLog2[[#This Row],[BTO]]=\"\", TradeLog2[[#This Row],[STC]]=\"\"), 0, (TradeLog2[[#This Row],[STC]]-TradeLog2[[#This Row],[BTO]])*100)*TradeLog2[[#This Row],[CONTRACTS]]","v":0}]
[null,null,null,null,null,null,null,null,null,null,null,null,null,{"$f":"TradeLog2[[#This Row],[CONTRACTS]]*TradeLog2[[#This Row],[BTO]] *100","v":0},{"$f":"IFERROR(TradeLog2[[#This Row],[P&L]]/TradeLog2[[#This Row],[TOTAL COST]], 0)","v":0},{"$f":"IF(AND(TradeLog2[[#This Row],[BTO]]=\"\", TradeLog2[[#This Row],[STC]]=\"\"), 0, (TradeLog2[[#This Row],[STC]]-TradeLog2[[#This Row],[BTO]])*100)*TradeLog2[[#This Row],[CONTRACTS]]","v":0}]
[null,null,null,null,null,null,null,null,null,null,null,null,null,{"$f":"TradeLog2[[#This Row],[CONTRACTS]]*TradeLog2[[#This Row],[BTO]] *100","v":0},{"$f":"IFERROR(TradeLog2[[#This Row],[P&L]]/TradeLog2[[#This Row],[TOTAL COST]], 0)","v":0},{"$f":"IF(AND(TradeLog2[[#This Row],[BTO]]=\"\", TradeLog2[[#This Row],[STC]]=\"\"), 0, (TradeLog2[[#This Row],[STC]]-TradeLog2[[#This Row],[BTO]])*100)*TradeLog2[[#This Row],[CONTRACTS]]","v":0}]
[null,null,null,null,null,null,null,null,null,null,null,null,null,{"$f":"TradeLog2[[#This Row],[CONTRACTS]]*TradeLog2[[#This Row],[BTO]] *100","v":0},{"$f":"IFERROR(TradeLog2[[#This Row],[P&L]]/TradeLog2[[#This Row],[TOTAL COST]], 0)","v":0},{"$f":"IF(AND(TradeLog2[[#This Row],[BTO]]=\"\", TradeLog2[[#This Row],[STC]]=\"\"), 0, (TradeLog2[[#This Row],[STC]]-TradeLog2[[#This Row],[BTO]])*100)*TradeLog2[[#This Row],[CONTRACTS]]","v":0}]
[null,null,null,null,null,null,null,null,null,null,null,null,null,{"$f":"TradeLog2[[#This Row],[CONTRACTS]]*TradeLog2[[#This Row],[BTO]] *100","v":0},{"$f":"IFERROR(TradeLog2[[#This Row],[P&L]]/TradeLog2[[#This Row],[TOTAL COST]], 0)","v":0},{"$f":"IF(AND(TradeLog2[[#This Row],[BTO]]=\"\", TradeLog2[[#This Row],[STC]]=\"\"), 0, (TradeLog2[[#This Row],[STC]]-TradeLog2[[#This Row],[BTO]])*100)*TradeLog2[[#This Row],[CONTRACTS]]","v":0}]
[null,null,null,null,null,null,null,null,null,null,null,null,null,{"$f":"TradeLog2[[#This Row],[CONTRACTS]]*TradeLog2[[#This Row],[BTO]] *100","v":0},{"$f":"IFERROR(TradeLog2[[#This Row],[P&L]]/TradeLog2[[#This Row],[TOTAL COST]], 0)","v":0},{"$f":"IF(AND(TradeLog2[[#This Row],[BTO]]=\"\", TradeLog2[[#This Row],[STC]]=\"\"), 0, (TradeLog2[[#This Row],[STC]]-TradeLog2[[#This Row],[BTO]])*100)*TradeLog2[[#This Row],[CONTRACTS]]","v":0}]
[null,null,null,null,null,null,null,null,null,null,null,null,null,{"$f":"TradeLog2[[#This Row],[CONTRACTS]]*TradeLog2[[#This Row],[BTO]] *100","v":0},{"$f":"IFERROR(TradeLog2[[#This Row],[P&L]]/TradeLog2[[#This Row],[TOTAL COST]], 0)","v":0},{"$f":"IF(AND(TradeLog2[[#This Row],[BTO]]=\"\", TradeLog2[[#This Row],[STC]]=\"\"), 0, (TradeLog2[[#This Row],[STC]]-TradeLog2[[#This Row],[BTO]])*100)*TradeLog2[[#This Row],[CONTRACTS]]","v":0}]

{"sheet":"Trade Log","index":1,"n_rows":9,"n_cols":31,"rows_kept":9,"cut":false,"hidden":false,"merged":[[1,17,1,20],[5,1,5,4],[6,1,6,4],[7,25,7,27],[2,17,2,20],[5,6,6,6],[5,14,6,14],[2,5,2,16]]}
[]
[null,null,null,null,null,null,null,null,null,null,null,null,null,null,null,null,null,"INITIAL ACCOUNT BALANCE:",null,null,null,null,null,"FEES"]
[null,null,null,null,null,"TRADE LOG - INTRADAY TRADING",null,null,null,null,null,null,null,null,null,null,null,"PROFIT CREATED % OF INITIAL BALANCE:",null,null,null,{"$f":"((LOOKUP(2,1/(TradeLog[LIVE ACCOUNT BALANCE]<>\"\"),TradeLog[LIVE ACCOUNT BALANCE]) -V2)/V2) *0.1","v":{"$error":"#DIV/0!"}},null,"TRADE",4.95]
[null,null,null,null,null,null,null,null,null,null,null,null,null,null,null,null,null,"PLEASE DEFINE YOUR \"R\"",null,null,"MY R IS:",null,null,"CONTRACT",0.7]
[null,null,null,null,null,null,"Select ->","LIVE"]
[null,"ALL FIGURES IN USD",null,null,null,null,"ALL TRADES REPORT","# TRADES",{"$f":"COUNTIF(TradeLog[LIVE OR PAPER], H5)","v":0},"WINS",{"$f":"COUNTIFS(TradeLog[GROSS PROFIT],\">0\",TradeLog[LIVE OR PAPER], H5)","v":0},"$AVG WIN",{"$f":"IFERROR(SUMIFS(TradeLog[GROSS PROFIT], TradeLog[GROSS PROFIT],\">0\", TradeLog[LIVE OR PAPER], H5)/K6,0)","v":0},null,"TRADE REPORT RANGE","from","2020-09-27","# TRADES",{"$f":"COUNTIFS(TradeLog[D / M / Y],\">=\"&$Q$6,TradeLog[D / M / Y],\"<=\"&$Q$7, TradeLog[LIVE OR PAPER], H5)","v":0},"WINS",{"$f":"COUNTIFS(TradeLog[D / M / Y],\">=\"&$Q$6,TradeLog[D / M / Y],\"<=\"&$Q$7,TradeLog[GROSS PROFIT], \">0\",TradeLog[LIVE OR PAPER], H5)","v":0},"$AVG WIN",{"$f":"IFERROR(SUMIFS(TradeLog[GROSS PROFIT], TradeLog[D / M / Y],\">=\"&$Q$6,TradeLog[D / M / Y],\"<=\"&$Q$7,TradeLog[GROSS PROFIT], \">0\",TradeLog[LIVE OR PAPER], H5)/U6,0)","v":0}]
[null,"ALL TIMES RECORDED IN US TIME",null,null,null,null,null,"$ TOTAL",{"$f":"SUMIF(TradeLog[LIVE OR PAPER], H5, TradeLog[GROSS PROFIT])","v":0},"LOSSES",{"$f":"COUNTIFS(TradeLog[GROSS PROFIT],\"<=0\", TradeLog[LIVE OR PAPER], H5)","v":0},"$AVG LOSS",{"$f":"IFERROR(SUMIFS(TradeLog[GROSS PROFIT], TradeLog[GROSS PROFIT],\"<=0\",TradeLog[LIVE OR PAPER], H5)/K7, 0)","v":0},null,null,"to","2020-11-06","$ TOTAL",{"$f":"SUMIFS(TradeLog[GROSS PROFIT],TradeLog[D / M / Y],\">=\"&Q6,TradeLog[D / M / Y],\"<=\"&Q7,TradeLog[LIVE OR PAPER], H5)","v":0},"LOSSES",{"$f":"COUNTIFS(TradeLog[D / M / Y],\">=\"&$Q$6,TradeLog[D / M / Y],\"<=\"&$Q$7,TradeLog[GROSS PROFIT], \"<=0\",TradeLog[LIVE OR PAPER], H5)","v":0},"$AVG LOSS",{"$f":"IFERROR(SUMIFS(TradeLog[GROSS PROFIT], TradeLog[D / M / Y],\">=\"&$Q$6,TradeLog[D / M / Y],\"<=\"&$Q$7,TradeLog[GROSS PROFIT], \"<=0\",TradeLog[LIVE OR PAPER], H5)/U7, 0)","v":0}]
[null,null,"Drop down",null,"Drop down",null,null,"Drop down",null,null,null,null,null,null,"Formula",null,null,"Formula","Formula","Formula","Formula","Formula","Formula",null,"drop down list","PERSONAL ACCOUNTABILITY",null,null,"Formula","Formula","Formula"]
[null,"D / M / Y","LIVE OR PAPER","TICKER","STRATEGY","EXPIRY","STRIKE PRICE","CALL OR PUT","DELTA","10 DAY ATR","ORDER QTY","SCALING OUT","ENTRY PRICE","ENTRY TIME","TOTAL COST","EXIT PRICE","EXIT TIME","GROSS PROFIT","GROSS ROR","NETT PROFIT","% RISK","WITHIN YOUR R ?","LIVE ACCOUNT BALANCE","SCREEN SHOT","FOLLOW MY PLAN?","COMMENTS","WHAT CAN I DO TO IMPROVE? HOW COULD I HAVE MADE MORE MONEY?","WHAT EMOTIONS DID I EXPERIENCE?","Entry Fees","Exit Fees","WeekDay"]

{"sheet":"LIVE Report","index":2,"n_rows":39,"n_cols":14,"rows_kept":39,"cut":false,"hidden":false,"merged":[[0,9,0,10],[0,12,0,13],[0,4,0,8]]}
[null,null,null,null,"LIVE TRADING REPORT FOR  ",null,null,null,null,{"$f":"'Trade Log'!Q6","v":"2020-09-27"},null,"THRU",{"$f":"'Trade Log'!Q7","v":"2020-11-06"}]
[]
[null,"# TRADING DAYS","Trades",null,"Wins","Win $","Avg Win","Best","Losses","Loss $","Avg Loss","Worst","Gross Profit","Avg G. Profit"]
[null,{"$f":"'Trade Log'!Q7-'Trade Log'!Q6","v":40},{"$f":"SUM(C7:C8)","v":0},null,{"$f":"SUM(E7:E8)","v":0},{"$f":"SUM(F7:F8)","v":0},{"$f":"IFERROR(F4/E4,0)","v":0},{"$f":"MAX(H7:H8)","v":0},{"$f":"SUM(I7:I8)","v":0},{"$f":"SUM(J7:J8)","v":0},{"$f":"IFERROR(J4/I4,0)","v":0},{"$f":"MIN(L7:L8)","v":0},{"$f":"F4+J4","v":0},{"$f":"IFERROR(M4/C4,0)","v":0}]
[]
[null,"Direction","Trades",null,"Wins","Win $","Avg Win","Best","Losses","Loss $","Avg Loss","Worst","Gross Profit","Avg G. Profit"]
[null,"CALL",{"$f":"E7+I7","v":0},null,{"$f":"COUNTIFS(TradeLog[CALL OR PUT],B7, TradeLog[GROSS PROFIT], \">0\", TradeLog[D / M / Y],\">=\"&$J$1,TradeLog[D / M / Y],\"<=\"&$M$1, TradeLog[LIVE OR PAPER], \"LIVE\")","v":0},{"$f":"SUMIFS(TradeLog[GROSS PROFIT], TradeLog[GROSS PROFIT], \">0\", TradeLog[CALL OR PUT],B7, TradeLog[D / M / Y],\">=\"&$J$1,TradeLog[D / M / Y],\"<=\"&$M$1, TradeLog[LIVE OR PAPER], \"LIVE\")","v":0},{"$f":"IFERROR(F7/E7,0)","v":0},{"$f":"MAX(IF(TradeLog[CALL OR PUT]=B7, IF( TradeLog[GROSS PROFIT]>0, IF( TradeLog[D / M / Y] >= $J$1, IF( TradeLog[D / M / Y] <=$M$1,  IF( TradeLog[LIVE OR PAPER] =\"LIVE\", TradeLog[GROSS PROFIT], \"\"))))))","v":0},{"$f":"COUNTIFS(TradeLog[CALL OR PUT],B7, TradeLog[GROSS PROFIT], \"<=0\", TradeLog[D / M / Y],\">=\"&$J$1,TradeLog[D / M / Y],\"<=\"&$M$1, TradeLog[LIVE OR PAPER], \"LIVE\")","v":0},{"$f":"SUMIFS(TradeLog[GROSS PROFIT], TradeLog[GROSS PROFIT], \"<=0\", TradeLog[CALL OR PUT],B7,TradeLog[D / M / Y],\">=\"&$J$1,TradeLog[D / M / Y],\"<=\"&$M$1, TradeLog[LIVE OR PAPER], \"LIVE\")","v":0},{"$f":"IFERROR(J7/I7,0)","v":0},{"$f":"MIN(IF(TradeLog[CALL OR PUT]=B7, IF( TradeLog[GROSS PROFIT]<=0, IF( TradeLog[D / M / Y] >= $J$1, IF( TradeLog[D / M / Y] <=$M$1,  IF( TradeLog[LIVE OR PAPER] =\"LIVE\", TradeLog[GROSS PROFIT], \"\"))))))","v":0},{"$f":"F7+J7","v":0},{"$f":"IFERROR(M7/C7,0)","v":0}]
[null,"PUT",{"$f":"E8+I8","v":0},null,{"$f":"COUNTIFS(TradeLog[CALL OR PUT],B8, TradeLog[GROSS PROFIT], \">0\", TradeLog[D / M / Y],\">=\"&$J$1,TradeLog[D / M / Y],\"<=\"&$M$1, TradeLog[LIVE OR PAPER], \"LIVE\")","v":0},{"$f":"SUMIFS(TradeLog[GROSS PROFIT], TradeLog[GROSS PROFIT], \">0\", TradeLog[CALL OR PUT],B8, TradeLog[D / M / Y],\">=\"&$J$1,TradeLog[D / M / Y],\"<=\"&$M$1, TradeLog[LIVE OR PAPER], \"LIVE\")","v":0},{"$f":"IFERROR(F8/E8,0)","v":0},{"$f":"MAX(IF(TradeLog[CALL OR PUT]=B8, IF( TradeLog[GROSS PROFIT]>0, IF( TradeLog[D / M / Y] >= $J$1, IF( TradeLog[D / M / Y] <=$M$1,  IF( TradeLog[LIVE OR PAPER] =\"LIVE\", TradeLog[GROSS PROFIT], \"\"))))))","v":0},{"$f":"COUNTIFS(TradeLog[CALL OR PUT],B8, TradeLog[GROSS PROFIT], \"<=0\",TradeLog[D / M / Y],\">=\"&$J$1,TradeLog[D / M / Y],\"<=\"&$M$1, TradeLog[LIVE OR PAPER], \"LIVE\")","v":0},{"$f":"SUMIFS(TradeLog[GROSS PROFIT], TradeLog[GROSS PROFIT], \"<=0\", TradeLog[CALL OR PUT],B8,TradeLog[D / M / Y],\">=\"&$J$1,TradeLog[D / M / Y],\"<=\"&$M$1, TradeLog[LIVE OR PAPER], \"LIVE\")","v":0},{"$f":"IFERROR(J8/I8,0)","v":0},{"$f":"MIN(IF(TradeLog[CALL OR PUT]=B8, IF( TradeLog[GROSS PROFIT]<=0, IF( TradeLog[D / M / Y] >= $J$1, IF( TradeLog[D / M / Y] <=$M$1, IF( TradeLog[LIVE OR PAPER] =\"LIVE\", TradeLog[GROSS PROFIT], \"\"))))))","v":0},{"$f":"F8+J8","v":0},{"$f":"IFERROR(M8/C8,0)","v":0}]
[]
[null,"Strategy","Trades",null,"Wins","Win $","Avg Win","Best","Losses","Loss $","Avg Loss","Worst","Gross Profit","Avg G. Profit"]
[null,{"$f":"Lists!H4","v":"BULL FLAG"},{"$f":"E11+I11","v":0},null,{"$f":"COUNTIFS(TradeLog[STRATEGY],B11, TradeLog[GROSS PROFIT], \">0\", TradeLog[D / M / Y],\">=\"&$J$1,TradeLog[D / M / Y],\"<=\"&$M$1, TradeLog[LIVE OR PAPER], \"LIVE\")","v":0},{"$f":"SUMIFS(TradeLog[GROSS PROFIT], TradeLog[GROSS PROFIT], \">0\", TradeLog[STRATEGY],B11,TradeLog[D / M / Y],\">=\"&$J$1,TradeLog[D / M / Y],\"<=\"&$M$1, TradeLog[LIVE OR PAPER], \"LIVE\")","v":0},{"$f":"IFERROR(F11/E11,0)","v":0},{"$f":"MAX(IF(TradeLog[STRATEGY]=B11, IF( TradeLog[GROSS PROFIT]>0, IF( TradeLog[D / M / Y] >= $J$1, IF( TradeLog[D / M / Y] <=$M$1, IF( TradeLog[LIVE OR PAPER] =\"LIVE\", TradeLog[GROSS PROFIT], \"\"))))))","v":0},{"$f":"COUNTIFS(TradeLog[STRATEGY],B11, TradeLog[GROSS PROFIT], \"<=0\",TradeLog[D / M / Y],\">=\"&$J$1,TradeLog[D / M / Y],\"<=\"&$M$1, TradeLog[LIVE OR PAPER], \"LIVE\")","v":0},{"$f":"SUMIFS(TradeLog[GROSS PROFIT], TradeLog[GROSS PROFIT], \"<=0\", TradeLog[STRATEGY],B11,TradeLog[D / M / Y],\">=\"&$J$1,TradeLog[D / M / Y],\"<=\"&$M$1, TradeLog[LIVE OR PAPER], \"LIVE\")","v":0},{"$f":"IFERROR(J11/I11,0)","v":0},{"$f":"MIN(IF(TradeLog[STRATEGY]=B11, IF( TradeLog[GROSS PROFIT]<=0, IF( TradeLog[D / M / Y] >= $J$1, IF( TradeLog[D / M / Y] <=$M$1,  IF( TradeLog[LIVE OR PAPER] =\"LIVE\", TradeLog[GROSS PROFIT], \"\"))))))","v":0},{"$f":"F11+J11","v":0},{"$f":"IFERROR(M11/C11,0)","v":0}]
[null,{"$f":"Lists!H5","v":"BEAR FLAG"},{"$f":"E12+I12","v":0},null,{"$f":"COUNTIFS(TradeLog[STRATEGY],B12, TradeLog[GROSS PROFIT], \">0\", TradeLog[D / M / Y],\">=\"&$J$1,TradeLog[D / M / Y],\"<=\"&$M$1, TradeLog[LIVE OR PAPER], \"LIVE\")","v":0},{"$f":"SUMIFS(TradeLog[GROSS PROFIT], TradeLog[GROSS PROFIT], \">0\", TradeLog[STRATEGY],B12,TradeLog[D / M / Y],\">=\"&$J$1,TradeLog[D / M / Y],\"<=\"&$M$1, TradeLog[LIVE OR PAPER], \"LIVE\")","v":0},0,{"$f":"MAX(IF(TradeLog[STRATEGY]=B12, IF( TradeLog[GROSS PROFIT]>0, IF( TradeLog[D / M / Y] >= $J$1, IF( TradeLog[D / M / Y] <=$M$1, IF( TradeLog[LIVE OR PAPER] =\"LIVE\", TradeLog[GROSS PROFIT], \"\"))))))","v":0},{"$f":"COUNTIFS(TradeLog[STRATEGY],B12, TradeLog[GROSS PROFIT], \"<=0\",TradeLog[D / M / Y],\">=\"&$J$1,TradeLog[D / M / Y],\"<=\"&$M$1, TradeLog[LIVE OR PAPER], \"LIVE\")","v":0},{"$f":"SUMIFS(TradeLog[GROSS PROFIT], TradeLog[GROSS PROFIT], \"<=0\", TradeLog[STRATEGY],B12,TradeLog[D / M / Y],\">=\"&$J$1,TradeLog[D / M / Y],\"<=\"&$M$1, TradeLog[LIVE OR PAPER], \"LIVE\")","v":0},0,{"$f":"MIN(IF(TradeLog[STRATEGY]=B12, IF( TradeLog[GROSS PROFIT]<=0, IF( TradeLog[D / M / Y] >= $J$1, IF( TradeLog[D / M / Y] <=$M$1,  IF( TradeLog[LIVE OR PAPER] =\"LIVE\", TradeLog[GROSS PROFIT], \"\"))))))","v":0},{"$f":"F12+J12","v":0},0]
[null,{"$f":"Lists!H6","v":"M PATTERN"},0,null,{"$f":"COUNTIFS(TradeLog[STRATEGY],B13, TradeLog[GROSS PROFIT], \">0\", TradeLog[D / M / Y],\">=\"&$J$1,TradeLog[D / M / Y],\"<=\"&$M$1, TradeLog[LIVE OR PAPER], \"LIVE\")","v":0},{"$f":"SUMIFS(TradeLog[GROSS PROFIT], TradeLog[GROSS PROFIT], \">0\", TradeLog[STRATEGY],B13,TradeLog[D / M / Y],\">=\"&$J$1,TradeLog[D / M / Y],\"<=\"&$M$1, TradeLog[LIVE OR PAPER], \"LIVE\")","v":0},0,{"$f":"MAX(IF(TradeLog[STRATEGY]=B13, IF( TradeLog[GROSS PROFIT]>0, IF( TradeLog[D / M / Y] >= $J$1, IF( TradeLog[D / M / Y] <=$M$1, IF( TradeLog[LIVE OR PAPER] =\"LIVE\", TradeLog[GROSS PROFIT], \"\"))))))","v":0},{"$f":"COUNTIFS(TradeLog[STRATEGY],B13, TradeLog[GROSS PROFIT], \"<=0\",TradeLog[D / M / Y],\">=\"&$J$1,TradeLog[D / M / Y],\"<=\"&$M$1, TradeLog[LIVE OR PAPER], \"LIVE\")","v":0},{"$f":"SUMIFS(TradeLog[GROSS PROFIT], TradeLog[GROSS PROFIT], \"<=0\", TradeLog[STRATEGY],B13,TradeLog[D / M / Y],\">=\"&$J$1,TradeLog[D / M / Y],\"<=\"&$M$1, TradeLog[LIVE OR PAPER], \"LIVE\")","v":0},0,{"$f":"MIN(IF(TradeLog[STRATEGY]=B13, IF( TradeLog[GROSS PROFIT]<=0, IF( TradeLog[D / M / Y] >= $J$1, IF( TradeLog[D / M / Y] <=$M$1,  IF( TradeLog[LIVE OR PAPER] =\"LIVE\", TradeLog[GROSS PROFIT], \"\"))))))","v":0},0,0]
[null,{"$f":"Lists!H7","v":"W PATTERN"},0,null,{"$f":"COUNTIFS(TradeLog[STRATEGY],B14, TradeLog[GROSS PROFIT], \">0\", TradeLog[D / M / Y],\">=\"&$J$1,TradeLog[D / M / Y],\"<=\"&$M$1, TradeLog[LIVE OR PAPER], \"LIVE\")","v":0},{"$f":"SUMIFS(TradeLog[GROSS PROFIT], TradeLog[GROSS PROFIT], \">0\", TradeLog[STRATEGY],B14,TradeLog[D / M / Y],\">=\"&$J$1,TradeLog[D / M / Y],\"<=\"&$M$1, TradeLog[LIVE OR PAPER], \"LIVE\")","v":0},0,{"$f":"MAX(IF(TradeLog[STRATEGY]=B14, IF( TradeLog[GROSS PROFIT]>0, IF( TradeLog[D / M / Y] >= $J$1, IF( TradeLog[D / M / Y] <=$M$1, IF( TradeLog[LIVE OR PAPER] =\"LIVE\", TradeLog[GROSS PROFIT], \"\"))))))","v":0},{"$f":"COUNTIFS(TradeLog[STRATEGY],B14, TradeLog[GROSS PROFIT], \"<=0\",TradeLog[D / M / Y],\">=\"&$J$1,TradeLog[D / M / Y],\"<=\"&$M$1, TradeLog[LIVE OR PAPER], \"LIVE\")","v":0},{"$f":"SUMIFS(TradeLog[GROSS PROFIT], TradeLog[GROSS PROFIT], \"<=0\", TradeLog[STRATEGY],B14,TradeLog[D / M / Y],\">=\"&$J$1,TradeLog[D / M / Y],\"<=\"&$M$1, TradeLog[LIVE OR PAPER], \"LIVE\")","v":0},0,{"$f":"MIN(IF(TradeLog[STRATEGY]=B14, IF( TradeLog[GROSS PROFIT]<=0, IF( TradeLog[D / M / Y] >= $J$1, IF( TradeLog[D / M / Y] <=$M$1,  IF( TradeLog[LIVE OR PAPER] =\"LIVE\", TradeLog[GROSS PROFIT], \"\"))))))","v":0},0,0]
[null,{"$f":"Lists!H8","v":"REVERSAL"},{"$f":"E15+I15","v":0},null,{"$f":"COUNTIFS(TradeLog[STRATEGY],B15, TradeLog[GROSS PROFIT], \">0\", TradeLog[D / M / Y],\">=\"&$J$1,TradeLog[D / M / Y],\"<=\"&$M$1, TradeLog[LIVE OR PAPER], \"LIVE\")","v":0},{"$f":"SUMIFS(TradeLog[GROSS PROFIT], TradeLog[GROSS PROFIT], \">0\", TradeLog[STRATEGY],B15,TradeLog[D / M / Y],\">=\"&$J$1,TradeLog[D / M / Y],\"<=\"&$M$1, TradeLog[LIVE OR PAPER], \"LIVE\")","v":0},0,{"$f":"MAX(IF(TradeLog[STRATEGY]=B15, IF( TradeLog[GROSS PROFIT]>0, IF( TradeLog[D / M / Y] >= $J$1, IF( TradeLog[D / M / Y] <=$M$1, IF( TradeLog[LIVE OR PAPER] =\"LIVE\", TradeLog[GROSS PROFIT], \"\"))))))","v":0},{"$f":"COUNTIFS(TradeLog[STRATEGY],B15, TradeLog[GROSS PROFIT], \"<=0\",TradeLog[D / M / Y],\">=\"&$J$1,TradeLog[D / M / Y],\"<=\"&$M$1, TradeLog[LIVE OR PAPER], \"LIVE\")","v":0},{"$f":"SUMIFS(TradeLog[GROSS PROFIT], TradeLog[GROSS PROFIT], \"<=0\", TradeLog[STRATEGY],B15,TradeLog[D / M / Y],\">=\"&$J$1,TradeLog[D / M / Y],\"<=\"&$M$1, TradeLog[LIVE OR PAPER], \"LIVE\")","v":0},0,{"$f":"MIN(IF(TradeLog[STRATEGY]=B15, IF( TradeLog[GROSS PROFIT]<=0, IF( TradeLog[D / M / Y] >= $J$1, IF( TradeLog[D / M / Y] <=$M$1,  IF( TradeLog[LIVE OR PAPER] =\"LIVE\", TradeLog[GROSS PROFIT], \"\"))))))","v":0},{"$f":"F15+J15","v":0},0]
[null,{"$f":"Lists!H9","v":"BREAK OUT"},{"$f":"E16+I16","v":0},null,{"$f":"COUNTIFS(TradeLog[STRATEGY],B16, TradeLog[GROSS PROFIT], \">0\", TradeLog[D / M / Y],\">=\"&$J$1,TradeLog[D / M / Y],\"<=\"&$M$1, TradeLog[LIVE OR PAPER], \"LIVE\")","v":0},{"$f":"SUMIFS(TradeLog[GROSS PROFIT], TradeLog[GROSS PROFIT], \">0\", TradeLog[STRATEGY],B16,TradeLog[D / M / Y],\">=\"&$J$1,TradeLog[D / M / Y],\"<=\"&$M$1, TradeLog[LIVE OR PAPER], \"LIVE\")","v":0},0,{"$f":"MAX(IF(TradeLog[STRATEGY]=B16, IF( TradeLog[GROSS PROFIT]>0, IF( TradeLog[D / M / Y] >= $J$1, IF( TradeLog[D / M / Y] <=$M$1, IF( TradeLog[LIVE OR PAPER] =\"LIVE\", TradeLog[GROSS PROFIT], \"\"))))))","v":0},{"$f":"COUNTIFS(TradeLog[STRATEGY],B16, TradeLog[GROSS PROFIT], \"<=0\",TradeLog[D / M / Y],\">=\"&$J$1,TradeLog[D / M / Y],\"<=\"&$M$1, TradeLog[LIVE OR PAPER], \"LIVE\")","v":0},{"$f":"SUMIFS(TradeLog[GROSS PROFIT], TradeLog[GROSS PROFIT], \"<=0\", TradeLog[STRATEGY],B16,TradeLog[D / M / Y],\">=\"&$J$1,TradeLog[D / M / Y],\"<=\"&$M$1, TradeLog[LIVE OR PAPER], \"LIVE\")","v":0},0,{"$f":"MIN(IF(TradeLog[STRATEGY]=B16, IF( TradeLog[GROSS PROFIT]<=0, IF( TradeLog[D / M / Y] >= $J$1, IF( TradeLog[D / M / Y] <=$M$1,  IF( TradeLog[LIVE OR PAPER] =\"LIVE\", TradeLog[GROSS PROFIT], \"\"))))))","v":0},{"$f":"F16+J16","v":0},0]
[null,{"$f":"Lists!H10","v":0},{"$f":"E17+I17","v":0},null,{"$f":"COUNTIFS(TradeLog[STRATEGY],B17, TradeLog[GROSS PROFIT], \">0\", TradeLog[D / M / Y],\">=\"&$J$1,TradeLog[D / M / Y],\"<=\"&$M$1, TradeLog[LIVE OR PAPER], \"LIVE\")","v":0},{"$f":"SUMIFS(TradeLog[GROSS PROFIT], TradeLog[GROSS PROFIT], \">0\", TradeLog[STRATEGY],B17,TradeLog[D / M / Y],\">=\"&$J$1,TradeLog[D / M / Y],\"<=\"&$M$1, TradeLog[LIVE OR PAPER], \"LIVE\")","v":0},{"$f":"IFERROR(F17/E17,0)","v":0},{"$f":"MAX(IF(TradeLog[STRATEGY]=B17, IF( TradeLog[GROSS PROFIT]>0, IF( TradeLog[D / M / Y] >= $J$1, IF( TradeLog[D / M / Y] <=$M$1, IF( TradeLog[LIVE OR PAPER] =\"LIVE\", TradeLog[GROSS PROFIT], \"\"))))))","v":0},{"$f":"COUNTIFS(TradeLog[STRATEGY],B17, TradeLog[GROSS PROFIT], \"<=0\",TradeLog[D / M / Y],\">=\"&$J$1,TradeLog[D / M / Y],\"<=\"&$M$1, TradeLog[LIVE OR PAPER], \"LIVE\")","v":0},{"$f":"SUMIFS(TradeLog[GROSS PROFIT], TradeLog[GROSS PROFIT], \"<=0\", TradeLog[STRATEGY],B17,TradeLog[D / M / Y],\">=\"&$J$1,TradeLog[D / M / Y],\"<=\"&$M$1, TradeLog[LIVE OR PAPER], \"LIVE\")","v":0},{"$f":"IFERROR(J17/I17,0)","v":0},{"$f":"MIN(IF(TradeLog[STRATEGY]=B17, IF( TradeLog[GROSS PROFIT]<=0, IF( TradeLog[D / M / Y] >= $J$1, IF( TradeLog[D / M / Y] <=$M$1,  IF( TradeLog[LIVE OR PAPER] =\"LIVE\", TradeLog[GROSS PROFIT], \"\"))))))","v":0},{"$f":"F17+J17","v":0},{"$f":"IFERROR(M17/C17,0)","v":0}]
[null,{"$f":"Lists!H11","v":0},0,null,{"$f":"COUNTIFS(TradeLog[STRATEGY],B18, TradeLog[GROSS PROFIT], \">0\", TradeLog[D / M / Y],\">=\"&$J$1,TradeLog[D / M / Y],\"<=\"&$M$1, TradeLog[LIVE OR PAPER], \"LIVE\")","v":0},{"$f":"SUMIFS(TradeLog[GROSS PROFIT], TradeLog[GROSS PROFIT], \">0\", TradeLog[STRATEGY],B18,TradeLog[D / M / Y],\">=\"&$J$1,TradeLog[D / M / Y],\"<=\"&$M$1, TradeLog[LIVE OR PAPER], \"LIVE\")","v":0},0,{"$f":"MAX(IF(TradeLog[STRATEGY]=B18, IF( TradeLog[GROSS PROFIT]>0, IF( TradeLog[D / M / Y] >= $J$1, IF( TradeLog[D / M / Y] <=$M$1, IF( TradeLog[LIVE OR PAPER] =\"LIVE\", TradeLog[GROSS PROFIT], \"\"))))))","v":0},{"$f":"COUNTIFS(TradeLog[STRATEGY],B18, TradeLog[GROSS PROFIT], \"<=0\",TradeLog[D / M / Y],\">=\"&$J$1,TradeLog[D / M / Y],\"<=\"&$M$1, TradeLog[LIVE OR PAPER], \"LIVE\")","v":0},{"$f":"SUMIFS(TradeLog[GROSS PROFIT], TradeLog[GROSS PROFIT], \"<=0\", TradeLog[STRATEGY],B18,TradeLog[D / M / Y],\">=\"&$J$1,TradeLog[D / M / Y],\"<=\"&$M$1, TradeLog[LIVE OR PAPER], \"LIVE\")","v":0},0,{"$f":"MIN(IF(TradeLog[STRATEGY]=B18, IF( TradeLog[GROSS PROFIT]<=0, IF( TradeLog[D / M / Y] >= $J$1, IF( TradeLog[D / M / Y] <=$M$1,  IF( TradeLog[LIVE OR PAPER] =\"LIVE\", TradeLog[GROSS PROFIT], \"\"))))))","v":0},0,0]
[]
[null,"Trading Plan","Trades",null,"Wins","Win $","Avg Win","Best","Losses","Loss $","Avg Loss","Worst","Gross Profit","Avg G. Profit"]
[100,"Followed Plan",{"$f":"E21+I21","v":0},null,{"$f":"COUNTIFS(TradeLog[FOLLOW MY PLAN?],\"Yes\", TradeLog[GROSS PROFIT], \">0\",TradeLog[D / M / Y],\">=\"&$J$1,TradeLog[D / M / Y],\"<=\"&$M$1, TradeLog[LIVE OR PAPER], \"LIVE\")","v":0},{"$f":"SUMIFS(TradeLog[GROSS PROFIT], TradeLog[GROSS PROFIT], \">0\", TradeLog[FOLLOW MY PLAN?],\"Yes\",TradeLog[D / M / Y],\">=\"&$J$1,TradeLog[D / M / Y],\"<=\"&$M$1, TradeLog[LIVE OR PAPER], \"LIVE\")","v":0},{"$f":"IFERROR(F21/E21,0)","v":0},{"$f":"MAX(IF(TradeLog[FOLLOW MY PLAN?]=\"Yes\", IF( TradeLog[GROSS PROFIT]>0, IF( TradeLog[D / M / Y] >= $J$1, IF( TradeLog[D / M / Y] <=$M$1, IF( TradeLog[LIVE OR PAPER] =\"LIVE\", TradeLog[GROSS PROFIT], \"\"))))))","v":0},{"$f":"COUNTIFS(TradeLog[FOLLOW MY PLAN?],\"Yes\", TradeLog[GROSS PROFIT], \"<=0\",TradeLog[D / M / Y],\">=\"&$J$1,TradeLog[D / M / Y],\"<=\"&$M$1, TradeLog[LIVE OR PAPER], \"LIVE\")","v":0},{"$f":"SUMIFS(TradeLog[GROSS PROFIT], TradeLog[GROSS PROFIT], \"<=0\", TradeLog[FOLLOW MY PLAN?],\"Yes\",TradeLog[D / M / Y],\">=\"&$J$1,TradeLog[D / M / Y],\"<=\"&$M$1, TradeLog[LIVE OR PAPER], \"LIVE\")","v":0},{"$f":"IFERROR(J21/I21,0)","v":0},{"$f":"MAX(IF(TradeLog[FOLLOW MY PLAN?]=\"Yes\", IF( TradeLog[GROSS PROFIT]<=0, IF( TradeLog[D / M / Y] >= $J$1, IF( TradeLog[D / M / Y] <=$M$1,  IF( TradeLog[LIVE OR PAPER] =\"LIVE\", TradeLog[GROSS PROFIT], \"\"))))))","v":0},{"$f":"F21+J21","v":0},{"$f":"IFERROR(M21/C21,0)","v":0}]
["---","Didn't Follow Plan",{"$f":"E22+I22","v":0},null,{"$f":"COUNTIFS(TradeLog[FOLLOW MY PLAN?],\"No\", TradeLog[GROSS PROFIT], \">0\",TradeLog[D / M / Y],\">=\"&$J$1,TradeLog[D / M / Y],\"<=\"&$M$1, TradeLog[LIVE OR PAPER], \"LIVE\")","v":0},{"$f":"SUMIFS(TradeLog[GROSS PROFIT], TradeLog[GROSS PROFIT], \">0\", TradeLog[FOLLOW MY PLAN?],\"No\",TradeLog[D / M / Y],\">=\"&$J$1,TradeLog[D / M / Y],\"<=\"&$M$1, TradeLog[LIVE OR PAPER], \"LIVE\")","v":0},{"$f":"IFERROR(F22/E22,0)","v":0},{"$f":"MAX(IF(TradeLog[FOLLOW MY PLAN?]=\"No\", IF( TradeLog[GROSS PROFIT]>0, IF( TradeLog[D / M / Y] >= $J$1, IF( TradeLog[D / M / Y] <=$M$1, IF( TradeLog[LIVE OR PAPER] =\"LIVE\", TradeLog[GROSS PROFIT], \"\"))))))","v":0},{"$f":"COUNTIFS(TradeLog[FOLLOW MY PLAN?],\"No\", TradeLog[GROSS PROFIT], \"<=0\",TradeLog[D / M / Y],\">=\"&$J$1,TradeLog[D / M / Y],\"<=\"&$M$1, TradeLog[LIVE OR PAPER], \"LIVE\")","v":0},{"$f":"SUMIFS(TradeLog[GROSS PROFIT], TradeLog[GROSS PROFIT], \"<=0\", TradeLog[FOLLOW MY PLAN?],\"No\",TradeLog[D / M / Y],\">=\"&$J$1,TradeLog[D / M / Y],\"<=\"&$M$1, TradeLog[LIVE OR PAPER], \"LIVE\")","v":0},{"$f":"IFERROR(J22/I22,0)","v":0},{"$f":"MAX(IF(TradeLog[FOLLOW MY PLAN?]=\"No\", IF( TradeLog[GROSS PROFIT]<=0, IF( TradeLog[D / M / Y] >= $J$1, IF( TradeLog[D / M / Y] <=$M$1, IF( TradeLog[LIVE OR PAPER] =\"LIVE\", TradeLog[GROSS PROFIT], \"\"))))))","v":0},{"$f":"F22+J22","v":0},{"$f":"IFERROR(M22/C22,0)","v":0}]
[null,"WITHIN YOUR R",{"$f":"E23+I23","v":0},null,{"$f":"COUNTIFS(TradeLog[WITHIN YOUR R ?],\"Yes\", TradeLog[GROSS PROFIT], \">0\",TradeLog[D / M / Y],\">=\"&$J$1,TradeLog[D / M / Y],\"<=\"&$M$1, TradeLog[LIVE OR PAPER], \"LIVE\")","v":0},{"$f":"SUMIFS(TradeLog[GROSS PROFIT], TradeLog[GROSS PROFIT], \">0\", TradeLog[WITHIN YOUR R ?],\"Yes\",TradeLog[D / M / Y],\">=\"&$J$1,TradeLog[D / M / Y],\"<=\"&$M$1, TradeLog[LIVE OR PAPER], \"LIVE\")","v":0},{"$f":"IFERROR(F23/E23,0)","v":0},{"$f":"MAX(IF(TradeLog[WITHIN YOUR R ?]=\"Yes\", IF( TradeLog[GROSS PROFIT]>0, IF( TradeLog[D / M / Y] >= $J$1, IF( TradeLog[D / M / Y] <=$M$1, IF( TradeLog[LIVE OR PAPER] =\"LIVE\", TradeLog[GROSS PROFIT], \"\"))))))","v":0},{"$f":"COUNTIFS(TradeLog[WITHIN YOUR R ?],\"Yes\", TradeLog[GROSS PROFIT], \"<=0\",TradeLog[D / M / Y],\">=\"&$J$1,TradeLog[D / M / Y],\"<=\"&$M$1, TradeLog[LIVE OR PAPER], \"LIVE\")","v":0},{"$f":"SUMIFS(TradeLog[GROSS PROFIT], TradeLog[GROSS PROFIT], \"<=0\", TradeLog[WITHIN YOUR R ?],\"Yes\",TradeLog[D / M / Y],\">=\"&$J$1,TradeLog[D / M / Y],\"<=\"&$M$1, TradeLog[LIVE OR PAPER], \"LIVE\")","v":0},{"$f":"IFERROR(J23/I23,0)","v":0},{"$f":"MAX(IF(TradeLog[WITHIN YOUR R ?]=\"Yes\", IF( TradeLog[GROSS PROFIT]<=0, IF( TradeLog[D / M / Y] >= $J$1, IF( TradeLog[D / M / Y] <=$M$1,  IF( TradeLog[LIVE OR PAPER] =\"LIVE\", TradeLog[GROSS PROFIT], \"\"))))))","v":0},{"$f":"F23+J23","v":0},{"$f":"IFERROR(M23/C23,0)","v":0}]
[null,"OUTSIDE YOUR R",0,null,{"$f":"COUNTIFS(TradeLog[WITHIN YOUR R ?],\"No\", TradeLog[GROSS PROFIT], \">0\",TradeLog[D / M / Y],\">=\"&$J$1,TradeLog[D / M / Y],\"<=\"&$M$1, TradeLog[LIVE OR PAPER], \"LIVE\")","v":0},{"$f":"SUMIFS(TradeLog[GROSS PROFIT], TradeLog[GROSS PROFIT], \">0\", TradeLog[WITHIN YOUR R ?],\"No\",TradeLog[D / M / Y],\">=\"&$J$1,TradeLog[D / M / Y],\"<=\"&$M$1, TradeLog[LIVE OR PAPER], \"LIVE\")","v":0},0,{"$f":"MAX(IF(TradeLog[WITHIN YOUR R ?]=\"No\", IF( TradeLog[GROSS PROFIT]>0, IF( TradeLog[D / M / Y] >= $J$1, IF( TradeLog[D / M / Y] <=$M$1, IF( TradeLog[LIVE OR PAPER] =\"LIVE\", TradeLog[GROSS PROFIT], \"\"))))))","v":0},{"$f":"COUNTIFS(TradeLog[WITHIN YOUR R ?],\"No\", TradeLog[GROSS PROFIT], \"<=0\",TradeLog[D / M / Y],\">=\"&$J$1,TradeLog[D / M / Y],\"<=\"&$M$1, TradeLog[LIVE OR PAPER], \"LIVE\")","v":0},{"$f":"SUMIFS(TradeLog[GROSS PROFIT], TradeLog[GROSS PROFIT], \"<=0\", TradeLog[WITHIN YOUR R ?],\"No\",TradeLog[D / M / Y],\">=\"&$J$1,TradeLog[D / M / Y],\"<=\"&$M$1, TradeLog[LIVE OR PAPER], \"LIVE\")","v":0},0,{"$f":"MAX(IF(TradeLog[WITHIN YOUR R ?]=\"No\", IF( TradeLog[GROSS PROFIT]<=0, IF( TradeLog[D / M / Y] >= $J$1, IF( TradeLog[D / M / Y] <=$M$1, IF( TradeLog[LIVE OR PAPER] =\"LIVE\", TradeLog[GROSS PROFIT], \"\"))))))","v":0},0,0]
[]
[null,"Weekday","Trades",null,"Wins","Win $","Avg Win","Best","Losses","Loss $","Avg Loss","Worst","Gross Profit","Avg G. Profit"]
[null,"Monday",{"$f":"E27+I27","v":0},null,{"$f":"COUNTIFS(TradeLog[WeekDay],B27, TradeLog[GROSS PROFIT], \">0\",TradeLog[D / M / Y],\">=\"&$J$1,TradeLog[D / M / Y],\"<=\"&$M$1, TradeLog[LIVE OR PAPER], \"LIVE\")","v":0},{"$f":"SUMIFS(TradeLog[GROSS PROFIT], TradeLog[GROSS PROFIT], \">0\", TradeLog[WeekDay],B27,TradeLog[D / M / Y],\">=\"&$J$1,TradeLog[D / M / Y],\"<=\"&$M$1, TradeLog[LIVE OR PAPER], \"LIVE\")","v":0},{"$f":"IFERROR(F27/E27,0)","v":0},{"$f":"MAX(IF(TradeLog[WeekDay]=B27, IF( TradeLog[GROSS PROFIT]>0, IF( TradeLog[D / M / Y] >= $J$1, IF( TradeLog[D / M / Y] <=$M$1, IF( TradeLog[LIVE OR PAPER] =\"LIVE\", TradeLog[GROSS PROFIT], \"\"))))))","v":0},{"$f":"COUNTIFS(TradeLog[WeekDay],B27, TradeLog[GROSS PROFIT], \"<=0\",TradeLog[D / M / Y],\">=\"&$J$1,TradeLog[D / M / Y],\"<=\"&$M$1, TradeLog[LIVE OR PAPER], \"LIVE\")","v":0},{"$f":"SUMIFS(TradeLog[GROSS PROFIT], TradeLog[GROSS PROFIT], \"<=0\", TradeLog[WeekDay],B27,TradeLog[D / M / Y],\">=\"&$J$1,TradeLog[D / M / Y],\"<=\"&$M$1, TradeLog[LIVE OR PAPER], \"LIVE\")","v":0},{"$f":"IFERROR(J27/I27,0)","v":0},{"$f":"MAX(IF(TradeLog[WeekDay]=B27, IF( TradeLog[GROSS PROFIT]<=0, IF( TradeLog[D / M / Y] >= $J$1, IF( TradeLog[D / M / Y] <=$M$1,  IF( TradeLog[LIVE OR PAPER] =\"LIVE\", TradeLog[GROSS PROFIT], \"\"))))))","v":0},{"$f":"F27+J27","v":0},{"$f":"IFERROR(M27/C27,0)","v":0}]
[null,"Tuesday",{"$f":"E28+I28","v":0},null,{"$f":"COUNTIFS(TradeLog[WeekDay],B28, TradeLog[GROSS PROFIT], \">0\",TradeLog[D / M / Y],\">=\"&$J$1,TradeLog[D / M / Y],\"<=\"&$M$1, TradeLog[LIVE OR PAPER], \"LIVE\")","v":0},{"$f":"SUMIFS(TradeLog[GROSS PROFIT], TradeLog[GROSS PROFIT], \">0\", TradeLog[WeekDay],B28,TradeLog[D / M / Y],\">=\"&$J$1,TradeLog[D / M / Y],\"<=\"&$M$1, TradeLog[LIVE OR PAPER], \"LIVE\")","v":0},{"$f":"IFERROR(F28/E28,0)","v":0},{"$f":"MAX(IF(TradeLog[WeekDay]=B28, IF( TradeLog[GROSS PROFIT]>0, IF( TradeLog[D / M / Y] >= $J$1, IF( TradeLog[D / M / Y] <=$M$1, IF( TradeLog[LIVE OR PAPER] =\"LIVE\", TradeLog[GROSS PROFIT], \"\"))))))","v":0},{"$f":"COUNTIFS(TradeLog[WeekDay],B28, TradeLog[GROSS PROFIT], \"<=0\",TradeLog[D / M / Y],\">=\"&$J$1,TradeLog[D / M / Y],\"<=\"&$M$1, TradeLog[LIVE OR PAPER], \"LIVE\")","v":0},{"$f":"SUMIFS(TradeLog[GROSS PROFIT], TradeLog[GROSS PROFIT], \"<=0\", TradeLog[WeekDay],B28,TradeLog[D / M / Y],\">=\"&$J$1,TradeLog[D / M / Y],\"<=\"&$M$1, TradeLog[LIVE OR PAPER], \"LIVE\")","v":0},{"$f":"IFERROR(J28/I28,0)","v":0},{"$f":"MAX(IF(TradeLog[WeekDay]=B28, IF( TradeLog[GROSS PROFIT]<=0, IF( TradeLog[D / M / Y] >= $J$1, IF( TradeLog[D / M / Y] <=$M$1,  IF( TradeLog[LIVE OR PAPER] =\"LIVE\", TradeLog[GROSS PROFIT], \"\"))))))","v":0},{"$f":"F28+J28","v":0},{"$f":"IFERROR(M28/C28,0)","v":0}]
[null,"Wednesday",{"$f":"E29+I29","v":0},null,{"$f":"COUNTIFS(TradeLog[WeekDay],B29, TradeLog[GROSS PROFIT], \">0\",TradeLog[D / M / Y],\">=\"&$J$1,TradeLog[D / M / Y],\"<=\"&$M$1, TradeLog[LIVE OR PAPER], \"LIVE\")","v":0},{"$f":"SUMIFS(TradeLog[GROSS PROFIT], TradeLog[GROSS PROFIT], \">0\", TradeLog[WeekDay],B29,TradeLog[D / M / Y],\">=\"&$J$1,TradeLog[D / M / Y],\"<=\"&$M$1, TradeLog[LIVE OR PAPER], \"LIVE\")","v":0},{"$f":"IFERROR(F29/E29,0)","v":0},{"$f":"MAX(IF(TradeLog[WeekDay]=B29, IF( TradeLog[GROSS PROFIT]>0, IF( TradeLog[D / M / Y] >= $J$1, IF( TradeLog[D / M / Y] <=$M$1, IF( TradeLog[LIVE OR PAPER] =\"LIVE\", TradeLog[GROSS PROFIT], \"\"))))))","v":0},{"$f":"COUNTIFS(TradeLog[WeekDay],B29, TradeLog[GROSS PROFIT], \"<=0\",TradeLog[D / M / Y],\">=\"&$J$1,TradeLog[D / M / Y],\"<=\"&$M$1, TradeLog[LIVE OR PAPER], \"LIVE\")","v":0},{"$f":"SUMIFS(TradeLog[GROSS PROFIT], TradeLog[GROSS PROFIT], \"<=0\", TradeLog[WeekDay],B29,TradeLog[D / M / Y],\">=\"&$J$1,TradeLog[D / M / Y],\"<=\"&$M$1, TradeLog[LIVE OR PAPER], \"LIVE\")","v":0},{"$f":"IFERROR(J29/I29,0)","v":0},{"$f":"MAX(IF(TradeLog[WeekDay]=B29, IF( TradeLog[GROSS PROFIT]<=0, IF( TradeLog[D / M / Y] >= $J$1, IF( TradeLog[D / M / Y] <=$M$1,  IF( TradeLog[LIVE OR PAPER] =\"LIVE\", TradeLog[GROSS PROFIT], \"\"))))))","v":0},{"$f":"F29+J29","v":0},{"$f":"IFERROR(M29/C29,0)","v":0}]
[null,"Thursday",{"$f":"E30+I30","v":0},null,{"$f":"COUNTIFS(TradeLog[WeekDay],B30, TradeLog[GROSS PROFIT], \">0\",TradeLog[D / M / Y],\">=\"&$J$1,TradeLog[D / M / Y],\"<=\"&$M$1, TradeLog[LIVE OR PAPER], \"LIVE\")","v":0},{"$f":"SUMIFS(TradeLog[GROSS PROFIT], TradeLog[GROSS PROFIT], \">0\", TradeLog[WeekDay],B30,TradeLog[D / M / Y],\">=\"&$J$1,TradeLog[D / M / Y],\"<=\"&$M$1, TradeLog[LIVE OR PAPER], \"LIVE\")","v":0},{"$f":"IFERROR(F30/E30,0)","v":0},{"$f":"MAX(IF(TradeLog[WeekDay]=B30, IF( TradeLog[GROSS PROFIT]>0, IF( TradeLog[D / M / Y] >= $J$1, IF( TradeLog[D / M / Y] <=$M$1, IF( TradeLog[LIVE OR PAPER] =\"LIVE\", TradeLog[GROSS PROFIT], \"\"))))))","v":0},{"$f":"COUNTIFS(TradeLog[WeekDay],B30, TradeLog[GROSS PROFIT], \"<=0\",TradeLog[D / M / Y],\">=\"&$J$1,TradeLog[D / M / Y],\"<=\"&$M$1, TradeLog[LIVE OR PAPER], \"LIVE\")","v":0},{"$f":"SUMIFS(TradeLog[GROSS PROFIT], TradeLog[GROSS PROFIT], \"<=0\", TradeLog[WeekDay],B30,TradeLog[D / M / Y],\">=\"&$J$1,TradeLog[D / M / Y],\"<=\"&$M$1, TradeLog[LIVE OR PAPER], \"LIVE\")","v":0},{"$f":"IFERROR(J30/I30,0)","v":0},{"$f":"MAX(IF(TradeLog[WeekDay]=B30, IF( TradeLog[GROSS PROFIT]<=0, IF( TradeLog[D / M / Y] >= $J$1, IF( TradeLog[D / M / Y] <=$M$1,  IF( TradeLog[LIVE OR PAPER] =\"LIVE\", TradeLog[GROSS PROFIT], \"\"))))))","v":0},{"$f":"F30+J30","v":0},{"$f":"IFERROR(M30/C30,0)","v":0}]
[null,"Friday",{"$f":"E31+I31","v":0},null,{"$f":"COUNTIFS(TradeLog[WeekDay],B31, TradeLog[GROSS PROFIT], \">0\",TradeLog[D / M / Y],\">=\"&$J$1,TradeLog[D / M / Y],\"<=\"&$M$1, TradeLog[LIVE OR PAPER], \"LIVE\")","v":0},{"$f":"SUMIFS(TradeLog[GROSS PROFIT], TradeLog[GROSS PROFIT], \">0\", TradeLog[WeekDay],B31,TradeLog[D / M / Y],\">=\"&$J$1,TradeLog[D / M / Y],\"<=\"&$M$1, TradeLog[LIVE OR PAPER], \"LIVE\")","v":0},{"$f":"IFERROR(F31/E31,0)","v":0},{"$f":"MAX(IF(TradeLog[WeekDay]=B31, IF( TradeLog[GROSS PROFIT]>0, IF( TradeLog[D / M / Y] >= $J$1, IF( TradeLog[D / M / Y] <=$M$1, IF( TradeLog[LIVE OR PAPER] =\"LIVE\", TradeLog[GROSS PROFIT], \"\"))))))","v":0},{"$f":"COUNTIFS(TradeLog[WeekDay],B31, TradeLog[GROSS PROFIT], \"<=0\",TradeLog[D / M / Y],\">=\"&$J$1,TradeLog[D / M / Y],\"<=\"&$M$1, TradeLog[LIVE OR PAPER], \"LIVE\")","v":0},{"$f":"SUMIFS(TradeLog[GROSS PROFIT], TradeLog[GROSS PROFIT], \"<=0\", TradeLog[WeekDay],B31,TradeLog[D / M / Y],\">=\"&$J$1,TradeLog[D / M / Y],\"<=\"&$M$1, TradeLog[LIVE OR PAPER], \"LIVE\")","v":0},{"$f":"IFERROR(J31/I31,0)","v":0},{"$f":"MAX(IF(TradeLog[WeekDay]=B31, IF( TradeLog[GROSS PROFIT]<=0, IF( TradeLog[D / M / Y] >= $J$1, IF( TradeLog[D / M / Y] <=$M$1,  IF( TradeLog[LIVE OR PAPER] =\"LIVE\", TradeLog[GROSS PROFIT], \"\"))))))","v":0},{"$f":"F31+J31","v":0},{"$f":"IFERROR(M31/C31,0)","v":0}]
[0.66666666666666663]
[null,"10 DAY ATR","Trades",null,"Wins","Win $","Avg Win","Best","Losses","Loss $","Avg Loss","Worst","Gross Profit","Avg G. Profit"]
[null,"Below 1",{"$f":"E34+I34","v":0},null,{"$f":"COUNTIFS(TradeLog[10 DAY ATR],\"<\" & 1, TradeLog[GROSS PROFIT], \">0\",TradeLog[D / M / Y],\">=\"&$J$1,TradeLog[D / M / Y],\"<=\"&$M$1, TradeLog[LIVE OR PAPER], \"LIVE\")","v":0},{"$f":"SUMIFS(TradeLog[GROSS PROFIT], TradeLog[GROSS PROFIT], \">0\", TradeLog[10 DAY ATR],\"<\" & 1,TradeLog[D / M / Y],\">=\"&$J$1,TradeLog[D / M / Y],\"<=\"&$M$1, TradeLog[LIVE OR PAPER], \"LIVE\")","v":0},{"$f":"IFERROR(F34/E34,0)","v":0},{"$f":"MAX(IF(TradeLog[10 DAY ATR]< 1, IF( TradeLog[GROSS PROFIT]>0, IF( TradeLog[D / M / Y] >= $J$1, IF( TradeLog[D / M / Y] <=$M$1, IF( TradeLog[LIVE OR PAPER] =\"LIVE\", TradeLog[GROSS PROFIT], \"\"))))))","v":0},{"$f":"COUNTIFS(TradeLog[10 DAY ATR],\"<\" & 1, TradeLog[GROSS PROFIT], \"<=0\",TradeLog[D / M / Y],\">=\"&$J$1,TradeLog[D / M / Y],\"<=\"&$M$1, TradeLog[LIVE OR PAPER], \"LIVE\")","v":0},{"$f":"SUMIFS(TradeLog[GROSS PROFIT], TradeLog[GROSS PROFIT], \"<=0\", TradeLog[10 DAY ATR],\"<\" & 1,TradeLog[D / M / Y],\">=\"&$J$1,TradeLog[D / M / Y],\"<=\"&$M$1, TradeLog[LIVE OR PAPER], \"LIVE\")","v":0},{"$f":"IFERROR(J34/I34,0)","v":0},{"$f":"MAX(IF(TradeLog[10 DAY ATR]< 1, IF( TradeLog[GROSS PROFIT]<0, IF( TradeLog[D / M / Y] >= $J$1, IF( TradeLog[D / M / Y] <=$M$1, IF( TradeLog[LIVE OR PAPER] =\"LIVE\", TradeLog[GROSS PROFIT], \"\"))))))","v":0},{"$f":"F34+J34","v":0},{"$f":"IFERROR(M34/C34,0)","v":0}]
[null,"1 to 3",{"$f":"E35+I35","v":0},null,{"$f":"COUNTIFS(TradeLog[10 DAY ATR],\">=\" & 1, TradeLog[10 DAY ATR],\"<\" &3, TradeLog[GROSS PROFIT], \">0\",TradeLog[D / M / Y],\">=\"&$J$1,TradeLog[D / M / Y],\"<=\"&$M$1, TradeLog[LIVE OR PAPER], \"LIVE\")","v":0},{"$f":"SUMIFS(TradeLog[GROSS PROFIT], TradeLog[GROSS PROFIT], \">0\", TradeLog[10 DAY ATR],\">=\" & 1, TradeLog[10 DAY ATR],\"<\" &3,TradeLog[D / M / Y],\">=\"&$J$1,TradeLog[D / M / Y],\"<=\"&$M$1, TradeLog[LIVE OR PAPER], \"LIVE\")","v":0},{"$f":"IFERROR(F35/E35,0)","v":0},{"$f":"MAX(IF(TradeLog[10 DAY ATR]>= 1,IF(TradeLog[10 DAY ATR]<3, IF( TradeLog[GROSS PROFIT]>0, IF( TradeLog[D / M / Y] >= $J$1, IF( TradeLog[D / M / Y] <=$M$1, IF( TradeLog[LIVE OR PAPER] =\"LIVE\", TradeLog[GROSS PROFIT], \"\")))))))","v":0},{"$f":"COUNTIFS(TradeLog[10 DAY ATR],\">=\" & 1, TradeLog[10 DAY ATR],\"<\" &3, TradeLog[GROSS PROFIT], \"<=0\",TradeLog[D / M / Y],\">=\"&$J$1,TradeLog[D / M / Y],\"<=\"&$M$1, TradeLog[LIVE OR PAPER], \"LIVE\")","v":0},{"$f":"SUMIFS(TradeLog[GROSS PROFIT], TradeLog[GROSS PROFIT], \"<=0\", TradeLog[10 DAY ATR],\">=\" & 1, TradeLog[10 DAY ATR],\"<\" &3,TradeLog[D / M / Y],\">=\"&$J$1,TradeLog[D / M / Y],\"<=\"&$M$1, TradeLog[LIVE OR PAPER], \"LIVE\")","v":0},{"$f":"IFERROR(J35/I35,0)","v":0},{"$f":"MAX(IF(TradeLog[10 DAY ATR]>= 1,IF(TradeLog[10 DAY ATR]<3, IF( TradeLog[GROSS PROFIT]<=0, IF( TradeLog[D / M / Y] >= $J$1, IF( TradeLog[D / M / Y] <=$M$1, IF( TradeLog[LIVE OR PAPER] =\"LIVE\", TradeLog[GROSS PROFIT], \"\")))))))","v":0},{"$f":"F35+J35","v":0},{"$f":"IFERROR(M35/C35,0)","v":0}]
[null,"3 to 5",{"$f":"E36+I36","v":0},null,{"$f":"COUNTIFS(TradeLog[10 DAY ATR],\">=\" & 3, TradeLog[10 DAY ATR],\"<\" & 5, TradeLog[GROSS PROFIT], \">0\",TradeLog[D / M / Y],\">=\"&$J$1,TradeLog[D / M / Y],\"<=\"&$M$1, TradeLog[LIVE OR PAPER], \"LIVE\")","v":0},{"$f":"SUMIFS(TradeLog[GROSS PROFIT], TradeLog[GROSS PROFIT], \">0\",TradeLog[10 DAY ATR],\">=\" & 3, TradeLog[10 DAY ATR],\"<\" &5,TradeLog[D / M / Y],\">=\"&$J$1,TradeLog[D / M / Y],\"<=\"&$M$1, TradeLog[LIVE OR PAPER], \"LIVE\")","v":0},{"$f":"IFERROR(F36/E36,0)","v":0},{"$f":"MAX(IF(TradeLog[10 DAY ATR]>= 3,IF(TradeLog[10 DAY ATR]<5, IF( TradeLog[GROSS PROFIT]>0, IF( TradeLog[D / M / Y] >= $J$1, IF( TradeLog[D / M / Y] <=$M$1, IF( TradeLog[LIVE OR PAPER] =\"LIVE\", TradeLog[GROSS PROFIT], \"\")))))))","v":0},{"$f":"COUNTIFS(TradeLog[10 DAY ATR],\">=\" & 3, TradeLog[10 DAY ATR],\"<\" & 5, TradeLog[GROSS PROFIT], \"<=0\",TradeLog[D / M / Y],\">=\"&$J$1,TradeLog[D / M / Y],\"<=\"&$M$1, TradeLog[LIVE OR PAPER], \"LIVE\")","v":0},{"$f":"SUMIFS(TradeLog[GROSS PROFIT], TradeLog[GROSS PROFIT], \"<=0\",TradeLog[10 DAY ATR],\">=\" & 3, TradeLog[10 DAY ATR],\"<\" &5,TradeLog[D / M / Y],\">=\"&$J$1,TradeLog[D / M / Y],\"<=\"&$M$1, TradeLog[LIVE OR PAPER], \"LIVE\")","v":0},{"$f":"IFERROR(J36/I36,0)","v":0},{"$f":"MAX(IF(TradeLog[10 DAY ATR]>= 3,IF(TradeLog[10 DAY ATR]<5, IF( TradeLog[GROSS PROFIT]<=0, IF( TradeLog[D / M / Y] >= $J$1, IF( TradeLog[D / M / Y] <=$M$1, IF( TradeLog[LIVE OR PAPER] =\"LIVE\", TradeLog[GROSS PROFIT], \"\")))))))","v":0},{"$f":"F36+J36","v":0},{"$f":"IFERROR(M36/C36,0)","v":0}]
[null,"5 to 10",{"$f":"E37+I37","v":0},null,{"$f":"COUNTIFS(TradeLog[10 DAY ATR],\">=5\", TradeLog[10 DAY ATR],\"<10\", TradeLog[GROSS PROFIT], \">0\",TradeLog[D / M / Y],\">=\"&$J$1,TradeLog[D / M / Y],\"<=\"&$M$1, TradeLog[LIVE OR PAPER], \"LIVE\")","v":0},{"$f":"SUMIFS(TradeLog[GROSS PROFIT], TradeLog[GROSS PROFIT], \">0\",TradeLog[10 DAY ATR],\">=\" & 5, TradeLog[10 DAY ATR],\"<\" &10,TradeLog[D / M / Y],\">=\"&$J$1,TradeLog[D / M / Y],\"<=\"&$M$1, TradeLog[LIVE OR PAPER], \"LIVE\")","v":0},{"$f":"IFERROR(F37/E37,0)","v":0},{"$f":"MAX(IF(TradeLog[10 DAY ATR]>= 5,IF(TradeLog[10 DAY ATR]<10, IF( TradeLog[GROSS PROFIT]>0, IF( TradeLog[D / M / Y] >= $J$1, IF( TradeLog[D / M / Y] <=$M$1, IF( TradeLog[LIVE OR PAPER] =\"LIVE\", TradeLog[GROSS PROFIT], \"\")))))))","v":0},{"$f":"COUNTIFS(TradeLog[10 DAY ATR],\">=5\", TradeLog[10 DAY ATR],\"<10\", TradeLog[GROSS PROFIT], \"<=0\",TradeLog[D / M / Y],\">=\"&$J$1,TradeLog[D / M / Y],\"<=\"&$M$1, TradeLog[LIVE OR PAPER], \"LIVE\")","v":0},{"$f":"SUMIFS(TradeLog[GROSS PROFIT], TradeLog[GROSS PROFIT], \"<=0\",TradeLog[10 DAY ATR],\">=\" & 5, TradeLog[10 DAY ATR],\"<\" &10,TradeLog[D / M / Y],\">=\"&$J$1,TradeLog[D / M / Y],\"<=\"&$M$1, TradeLog[LIVE OR PAPER], \"LIVE\")","v":0},{"$f":"IFERROR(J37/I37,0)","v":0},{"$f":"MAX(IF(TradeLog[10 DAY ATR]>= 5,IF(TradeLog[10 DAY ATR]<10, IF( TradeLog[GROSS PROFIT]<=0, IF( TradeLog[D / M / Y] >= $J$1, IF( TradeLog[D / M / Y] <=$M$1, IF( TradeLog[LIVE OR PAPER] =\"LIVE\", TradeLog[GROSS PROFIT], \"\")))))))","v":0},{"$f":"F37+J37","v":0},{"$f":"IFERROR(M37/C37,0)","v":0}]
[null,"Over 10",{"$f":"E38+I38","v":0},null,{"$f":"COUNTIFS(TradeLog[10 DAY ATR],\">=10\", TradeLog[GROSS PROFIT], \">0\",TradeLog[D / M / Y],\">=\"&$J$1,TradeLog[D / M / Y],\"<=\"&$M$1, TradeLog[LIVE OR PAPER], \"LIVE\")","v":0},{"$f":"SUMIFS(TradeLog[GROSS PROFIT], TradeLog[GROSS PROFIT], \">0\",TradeLog[10 DAY ATR],\">=\" & 10,TradeLog[D / M / Y],\">=\"&$J$1,TradeLog[D / M / Y],\"<=\"&$M$1, TradeLog[LIVE OR PAPER], \"LIVE\")","v":0},{"$f":"IFERROR(F38/E38,0)","v":0},{"$f":"MAX(IF(TradeLog[10 DAY ATR]>= 10, IF( TradeLog[GROSS PROFIT]>0, IF( TradeLog[D / M / Y] >= $J$1, IF( TradeLog[D / M / Y] <=$M$1, IF( TradeLog[LIVE OR PAPER] =\"LIVE\", TradeLog[GROSS PROFIT], \"\"))))))","v":0},{"$f":"COUNTIFS(TradeLog[10 DAY ATR],\">=10\", TradeLog[GROSS PROFIT], \"<=0\",TradeLog[D / M / Y],\">=\"&$J$1,TradeLog[D / M / Y],\"<=\"&$M$1, TradeLog[LIVE OR PAPER], \"LIVE\")","v":0},{"$f":"SUMIFS(TradeLog[GROSS PROFIT], TradeLog[GROSS PROFIT], \"<=0\",TradeLog[10 DAY ATR],\">=\" & 10,TradeLog[D / M / Y],\">=\"&$J$1,TradeLog[D / M / Y],\"<=\"&$M$1, TradeLog[LIVE OR PAPER], \"LIVE\")","v":0},{"$f":"IFERROR(J38/I38,0)","v":0},{"$f":"MAX(IF(TradeLog[10 DAY ATR]>= 10, IF( TradeLog[GROSS PROFIT]<=0, IF( TradeLog[D / M / Y] >= $J$1, IF( TradeLog[D / M / Y] <=$M$1, IF( TradeLog[LIVE OR PAPER] =\"LIVE\", TradeLog[GROSS PROFIT], \"\"))))))","v":0},{"$f":"F38+J38","v":0},{"$f":"IFERROR(M38/C38,0)","v":0}]
[0.66666666666666663]

{"sheet":"PAPER Report","index":3,"n_rows":39,"n_cols":14,"rows_kept":39,"cut":false,"hidden":false,"merged":[[0,4,0,8],[0,9,0,10],[0,12,0,13]]}
[null,null,null,null,"PAPER TRADING REPORT FOR  ",null,null,null,null,{"$f":"'Trade Log'!Q6","v":"2020-09-27"},null,"THRU",{"$f":"'Trade Log'!Q7","v":"2020-11-06"}]
[]
[null,"# TRADING DAYS","Trades",null,"Wins","Win $","Avg Win","Best","Losses","Loss $","Avg Loss","Worst","Gross Profit","Avg G. Profit"]
[null,{"$f":"'Trade Log'!Q7-'Trade Log'!Q6","v":40},{"$f":"SUM(C7:C8)","v":0},null,{"$f":"SUM(E7:E8)","v":0},{"$f":"SUM(F7:F8)","v":0},{"$f":"IFERROR(F4/E4,0)","v":0},{"$f":"MAX(H7:H8)","v":0},{"$f":"SUM(I7:I8)","v":0},{"$f":"SUM(J7:J8)","v":0},{"$f":"IFERROR(J4/I4,0)","v":0},{"$f":"MIN(L7:L8)","v":0},{"$f":"F4+J4","v":0},{"$f":"IFERROR(M4/C4,0)","v":0}]
[]
[null,"Direction","Trades",null,"Wins","Win $","Avg Win","Best","Losses","Loss $","Avg Loss","Worst","Gross Profit","Avg G. Profit"]
[null,"CALL",{"$f":"E7+I7","v":0},null,{"$f":"COUNTIFS(TradeLog[CALL OR PUT],B7, TradeLog[GROSS PROFIT], \">0\", TradeLog[D / M / Y],\">=\"&$J$1,TradeLog[D / M / Y],\"<=\"&$M$1, TradeLog[LIVE OR PAPER], \"PAPER\")","v":0},{"$f":"SUMIFS(TradeLog[GROSS PROFIT], TradeLog[GROSS PROFIT], \">0\", TradeLog[CALL OR PUT],B7, TradeLog[D / M / Y],\">=\"&$J$1,TradeLog[D / M / Y],\"<=\"&$M$1, TradeLog[LIVE OR PAPER], \"PAPER\")","v":0},{"$f":"IFERROR(F7/E7,0)","v":0},{"$f":"MAX(IF(TradeLog[CALL OR PUT]=B7, IF( TradeLog[GROSS PROFIT]>0, IF( TradeLog[D / M / Y] >= $J$1, IF( TradeLog[D / M / Y] <=$M$1, TradeLog[GROSS PROFIT], \"\")))))","v":0},{"$f":"COUNTIFS(TradeLog[CALL OR PUT],B7, TradeLog[GROSS PROFIT], \"<=0\", TradeLog[D / M / Y],\">=\"&$J$1,TradeLog[D / M / Y],\"<=\"&$M$1, TradeLog[LIVE OR PAPER], \"PAPER\")","v":0},{"$f":"SUMIFS(TradeLog[GROSS PROFIT], TradeLog[GROSS PROFIT], \"<=0\", TradeLog[CALL OR PUT],B7,TradeLog[D / M / Y],\">=\"&$J$1,TradeLog[D / M / Y],\"<=\"&$M$1, TradeLog[LIVE OR PAPER], \"PAPER\")","v":0},{"$f":"IFERROR(J7/I7,0)","v":0},{"$f":"MIN(IF(TradeLog[CALL OR PUT]=B7, IF( TradeLog[GROSS PROFIT]<=0, IF( TradeLog[D / M / Y] >= $J$1, IF( TradeLog[D / M / Y] <=$M$1,  IF( TradeLog[LIVE OR PAPER] =\"PAPER\", TradeLog[GROSS PROFIT], \"\"))))))","v":0},{"$f":"F7+J7","v":0},{"$f":"IFERROR(M7/C7,0)","v":0}]
[null,"PUT",{"$f":"E8+I8","v":0},null,{"$f":"COUNTIFS(TradeLog[CALL OR PUT],B8, TradeLog[GROSS PROFIT], \">0\", TradeLog[D / M / Y],\">=\"&$J$1,TradeLog[D / M / Y],\"<=\"&$M$1, TradeLog[LIVE OR PAPER], \"PAPER\")","v":0},{"$f":"SUMIFS(TradeLog[GROSS PROFIT], TradeLog[GROSS PROFIT], \">0\", TradeLog[CALL OR PUT],B8, TradeLog[D / M / Y],\">=\"&$J$1,TradeLog[D / M / Y],\"<=\"&$M$1, TradeLog[LIVE OR PAPER], \"PAPER\")","v":0},{"$f":"IFERROR(F8/E8,0)","v":0},{"$f":"MAX(IF(TradeLog[CALL OR PUT]=B8, IF( TradeLog[GROSS PROFIT]>0, IF( TradeLog[D / M / Y] >= $J$1, IF( TradeLog[D / M / Y] <=$M$1, TradeLog[GROSS PROFIT], \"\")))))","v":0},{"$f":"COUNTIFS(TradeLog[CALL OR PUT],B8, TradeLog[GROSS PROFIT], \"<=0\",TradeLog[D / M / Y],\">=\"&$J$1,TradeLog[D / M / Y],\"<=\"&$M$1, TradeLog[LIVE OR PAPER], \"PAPER\")","v":0},{"$f":"SUMIFS(TradeLog[GROSS PROFIT], TradeLog[GROSS PROFIT], \"<=0\", TradeLog[CALL OR PUT],B8,TradeLog[D / M / Y],\">=\"&$J$1,TradeLog[D / M / Y],\"<=\"&$M$1, TradeLog[LIVE OR PAPER], \"PAPER\")","v":0},{"$f":"IFERROR(J8/I8,0)","v":0},{"$f":"MIN(IF(TradeLog[CALL OR PUT]=B8, IF( TradeLog[GROSS PROFIT]<=0, IF( TradeLog[D / M / Y] >= $J$1, IF( TradeLog[D / M / Y] <=$M$1, IF( TradeLog[LIVE OR PAPER] =\"PAPER\", TradeLog[GROSS PROFIT], \"\"))))))","v":0},{"$f":"F8+J8","v":0},{"$f":"IFERROR(M8/C8,0)","v":0}]
[]
[null,"Strategy","Trades",null,"Wins","Win $","Avg Win","Best","Losses","Loss $","Avg Loss","Worst","Gross Profit","Avg G. Profit"]
[null,{"$f":"Lists!H4","v":"BULL FLAG"},{"$f":"E11+I11","v":0},null,{"$f":"COUNTIFS(TradeLog[STRATEGY],B11, TradeLog[GROSS PROFIT], \">0\", TradeLog[D / M / Y],\">=\"&$J$1,TradeLog[D / M / Y],\"<=\"&$M$1, TradeLog[LIVE OR PAPER], \"PAPER\")","v":0},{"$f":"SUMIFS(TradeLog[GROSS PROFIT], TradeLog[GROSS PROFIT], \">0\", TradeLog[STRATEGY],B11,TradeLog[D / M / Y],\">=\"&$J$1,TradeLog[D / M / Y],\"<=\"&$M$1, TradeLog[LIVE OR PAPER], \"PAPER\")","v":0},{"$f":"IFERROR(F11/E11,0)","v":0},{"$f":"MAX(IF(TradeLog[STRATEGY]=B11, IF( TradeLog[GROSS PROFIT]>0, IF( TradeLog[D / M / Y] >= $J$1, IF( TradeLog[D / M / Y] <=$M$1, TradeLog[GROSS PROFIT], \"\")))))","v":0},{"$f":"COUNTIFS(TradeLog[STRATEGY],B11, TradeLog[GROSS PROFIT], \"<=0\",TradeLog[D / M / Y],\">=\"&$J$1,TradeLog[D / M / Y],\"<=\"&$M$1, TradeLog[LIVE OR PAPER], \"PAPER\")","v":0},{"$f":"SUMIFS(TradeLog[GROSS PROFIT], TradeLog[GROSS PROFIT], \"<=0\", TradeLog[STRATEGY],B11,TradeLog[D / M / Y],\">=\"&$J$1,TradeLog[D / M / Y],\"<=\"&$M$1, TradeLog[LIVE OR PAPER], \"PAPER\")","v":0},{"$f":"IFERROR(J11/I11,0)","v":0},{"$f":"MIN(IF(TradeLog[[#This Row],[STRATEGY]]=B11, IF( TradeLog[[#This Row],[GROSS PROFIT]]<=0, IF( TradeLog[[#This Row],[D / M / Y]] >= $J$1, IF( TradeLog[[#This Row],[D / M / Y]] <=$M$1, IF( TradeLog[[#This Row],[LIVE OR PAPER]] =\"PAPER\", TradeLog[GROSS PROFIT], \"\"))))))","v":{"$error":"#VALUE!"}},{"$f":"F11+J11","v":0},{"$f":"IFERROR(M11/C11,0)","v":0}]
[null,{"$f":"Lists!H5","v":"BEAR FLAG"},{"$f":"E12+I12","v":0},null,{"$f":"COUNTIFS(TradeLog[STRATEGY],B12, TradeLog[GROSS PROFIT], \">0\",TradeLog[D / M / Y],\">=\"&$J$1,TradeLog[D / M / Y],\"<=\"&$M$1, TradeLog[LIVE OR PAPER], \"PAPER\")","v":0},{"$f":"SUMIFS(TradeLog[GROSS PROFIT], TradeLog[GROSS PROFIT], \">0\", TradeLog[STRATEGY],B12,TradeLog[D / M / Y],\">=\"&$J$1,TradeLog[D / M / Y],\"<=\"&$M$1, TradeLog[LIVE OR PAPER], \"PAPER\")","v":0},0,{"$f":"MAX(IF(TradeLog[STRATEGY]=B12, IF( TradeLog[GROSS PROFIT]>0, IF( TradeLog[D / M / Y] >= $J$1, IF( TradeLog[D / M / Y] <=$M$1, TradeLog[GROSS PROFIT], \"\")))))","v":0},{"$f":"COUNTIFS(TradeLog[STRATEGY],B12, TradeLog[GROSS PROFIT], \"<=0\",TradeLog[D / M / Y],\">=\"&$J$1,TradeLog[D / M / Y],\"<=\"&$M$1, TradeLog[LIVE OR PAPER], \"PAPER\")","v":0},{"$f":"SUMIFS(TradeLog[GROSS PROFIT], TradeLog[GROSS PROFIT], \"<=0\", TradeLog[STRATEGY],B12,TradeLog[D / M / Y],\">=\"&$J$1,TradeLog[D / M / Y],\"<=\"&$M$1, TradeLog[LIVE OR PAPER], \"PAPER\")","v":0},0,{"$f":"MIN(IF(TradeLog[STRATEGY]=B12, IF( TradeLog[GROSS PROFIT]<=0, IF( TradeLog[D / M / Y] >= $J$1, IF( TradeLog[D / M / Y] <=$M$1, IF( TradeLog[LIVE OR PAPER] =\"PAPER\", TradeLog[GROSS PROFIT], \"\"))))))","v":0},{"$f":"F12+J12","v":0},0]
[null,{"$f":"Lists!H6","v":"M PATTERN"},0,null,{"$f":"COUNTIFS(TradeLog[STRATEGY],B13, TradeLog[GROSS PROFIT], \">0\",TradeLog[D / M / Y],\">=\"&$J$1,TradeLog[D / M / Y],\"<=\"&$M$1, TradeLog[LIVE OR PAPER], \"PAPER\")","v":0},{"$f":"SUMIFS(TradeLog[GROSS PROFIT], TradeLog[GROSS PROFIT], \">0\", TradeLog[STRATEGY],B13,TradeLog[D / M / Y],\">=\"&$J$1,TradeLog[D / M / Y],\"<=\"&$M$1, TradeLog[LIVE OR PAPER], \"PAPER\")","v":0},0,{"$f":"MAX(IF(TradeLog[STRATEGY]=B13, IF( TradeLog[GROSS PROFIT]>0, IF( TradeLog[D / M / Y] >= $J$1, IF( TradeLog[D / M / Y] <=$M$1, TradeLog[GROSS PROFIT], \"\")))))","v":0},{"$f":"COUNTIFS(TradeLog[STRATEGY],B13, TradeLog[GROSS PROFIT], \"<=0\",TradeLog[D / M / Y],\">=\"&$J$1,TradeLog[D / M / Y],\"<=\"&$M$1, TradeLog[LIVE OR PAPER], \"PAPER\")","v":0},{"$f":"SUMIFS(TradeLog[GROSS PROFIT], TradeLog[GROSS PROFIT], \"<=0\", TradeLog[STRATEGY],B13,TradeLog[D / M / Y],\">=\"&$J$1,TradeLog[D / M / Y],\"<=\"&$M$1, TradeLog[LIVE OR PAPER], \"PAPER\")","v":0},0,{"$f":"MIN(IF(TradeLog[STRATEGY]=B13, IF( TradeLog[GROSS PROFIT]<=0, IF( TradeLog[D / M / Y] >= $J$1, IF( TradeLog[D / M / Y] <=$M$1, IF( TradeLog[LIVE OR PAPER] =\"PAPER\", TradeLog[GROSS PROFIT], \"\"))))))","v":0},0,0]
[null,{"$f":"Lists!H7","v":"W PATTERN"},0,null,{"$f":"COUNTIFS(TradeLog[STRATEGY],B14, TradeLog[GROSS PROFIT], \">0\",TradeLog[D / M / Y],\">=\"&$J$1,TradeLog[D / M / Y],\"<=\"&$M$1, TradeLog[LIVE OR PAPER], \"PAPER\")","v":0},{"$f":"SUMIFS(TradeLog[GROSS PROFIT], TradeLog[GROSS PROFIT], \">0\", TradeLog[STRATEGY],B14,TradeLog[D / M / Y],\">=\"&$J$1,TradeLog[D / M / Y],\"<=\"&$M$1, TradeLog[LIVE OR PAPER], \"PAPER\")","v":0},0,{"$f":"MAX(IF(TradeLog[STRATEGY]=B14, IF( TradeLog[GROSS PROFIT]>0, IF( TradeLog[D / M / Y] >= $J$1, IF( TradeLog[D / M / Y] <=$M$1, TradeLog[GROSS PROFIT], \"\")))))","v":0},{"$f":"COUNTIFS(TradeLog[STRATEGY],B14, TradeLog[GROSS PROFIT], \"<=0\",TradeLog[D / M / Y],\">=\"&$J$1,TradeLog[D / M / Y],\"<=\"&$M$1, TradeLog[LIVE OR PAPER], \"PAPER\")","v":0},{"$f":"SUMIFS(TradeLog[GROSS PROFIT], TradeLog[GROSS PROFIT], \"<=0\", TradeLog[STRATEGY],B14,TradeLog[D / M / Y],\">=\"&$J$1,TradeLog[D / M / Y],\"<=\"&$M$1, TradeLog[LIVE OR PAPER], \"PAPER\")","v":0},0,{"$f":"MIN(IF(TradeLog[STRATEGY]=B14, IF( TradeLog[GROSS PROFIT]<=0, IF( TradeLog[D / M / Y] >= $J$1, IF( TradeLog[D / M / Y] <=$M$1, IF( TradeLog[LIVE OR PAPER] =\"PAPER\", TradeLog[GROSS PROFIT], \"\"))))))","v":0},0,0]
[null,{"$f":"Lists!H8","v":"REVERSAL"},{"$f":"E15+I15","v":0},null,{"$f":"COUNTIFS(TradeLog[STRATEGY],B15, TradeLog[GROSS PROFIT], \">0\",TradeLog[D / M / Y],\">=\"&$J$1,TradeLog[D / M / Y],\"<=\"&$M$1, TradeLog[LIVE OR PAPER], \"PAPER\")","v":0},{"$f":"SUMIFS(TradeLog[GROSS PROFIT], TradeLog[GROSS PROFIT], \">0\", TradeLog[STRATEGY],B15,TradeLog[D / M / Y],\">=\"&$J$1,TradeLog[D / M / Y],\"<=\"&$M$1, TradeLog[LIVE OR PAPER], \"PAPER\")","v":0},0,{"$f":"MAX(IF(TradeLog[STRATEGY]=B15, IF( TradeLog[GROSS PROFIT]>0, IF( TradeLog[D / M / Y] >= $J$1, IF( TradeLog[D / M / Y] <=$M$1, TradeLog[GROSS PROFIT], \"\")))))","v":0},{"$f":"COUNTIFS(TradeLog[STRATEGY],B15, TradeLog[GROSS PROFIT], \"<=0\",TradeLog[D / M / Y],\">=\"&$J$1,TradeLog[D / M / Y],\"<=\"&$M$1, TradeLog[LIVE OR PAPER], \"PAPER\")","v":0},{"$f":"SUMIFS(TradeLog[GROSS PROFIT], TradeLog[GROSS PROFIT], \"<=0\", TradeLog[STRATEGY],B15,TradeLog[D / M / Y],\">=\"&$J$1,TradeLog[D / M / Y],\"<=\"&$M$1, TradeLog[LIVE OR PAPER], \"PAPER\")","v":0},0,{"$f":"MIN(IF(TradeLog[STRATEGY]=B15, IF( TradeLog[GROSS PROFIT]<=0, IF( TradeLog[D / M / Y] >= $J$1, IF( TradeLog[D / M / Y] <=$M$1, IF( TradeLog[LIVE OR PAPER] =\"PAPER\", TradeLog[GROSS PROFIT], \"\"))))))","v":0},{"$f":"F15+J15","v":0},0]
[null,{"$f":"Lists!H9","v":"BREAK OUT"},{"$f":"E16+I16","v":0},null,{"$f":"COUNTIFS(TradeLog[STRATEGY],B16, TradeLog[GROSS PROFIT], \">0\",TradeLog[D / M / Y],\">=\"&$J$1,TradeLog[D / M / Y],\"<=\"&$M$1, TradeLog[LIVE OR PAPER], \"PAPER\")","v":0},{"$f":"SUMIFS(TradeLog[GROSS PROFIT], TradeLog[GROSS PROFIT], \">0\", TradeLog[STRATEGY],B16,TradeLog[D / M / Y],\">=\"&$J$1,TradeLog[D / M / Y],\"<=\"&$M$1, TradeLog[LIVE OR PAPER], \"PAPER\")","v":0},0,{"$f":"MAX(IF(TradeLog[STRATEGY]=B16, IF( TradeLog[GROSS PROFIT]>0, IF( TradeLog[D / M / Y] >= $J$1, IF( TradeLog[D / M / Y] <=$M$1, TradeLog[GROSS PROFIT], \"\")))))","v":0},{"$f":"COUNTIFS(TradeLog[STRATEGY],B16, TradeLog[GROSS PROFIT], \"<=0\",TradeLog[D / M / Y],\">=\"&$J$1,TradeLog[D / M / Y],\"<=\"&$M$1, TradeLog[LIVE OR PAPER], \"PAPER\")","v":0},{"$f":"SUMIFS(TradeLog[GROSS PROFIT], TradeLog[GROSS PROFIT], \"<=0\", TradeLog[STRATEGY],B16,TradeLog[D / M / Y],\">=\"&$J$1,TradeLog[D / M / Y],\"<=\"&$M$1, TradeLog[LIVE OR PAPER], \"PAPER\")","v":0},0,{"$f":"MIN(IF(TradeLog[STRATEGY]=B16, IF( TradeLog[GROSS PROFIT]<=0, IF( TradeLog[D / M / Y] >= $J$1, IF( TradeLog[D / M / Y] <=$M$1, IF( TradeLog[LIVE OR PAPER] =\"PAPER\", TradeLog[GROSS PROFIT], \"\"))))))","v":0},{"$f":"F16+J16","v":0},0]
[null,{"$f":"Lists!H10","v":0},{"$f":"E17+I17","v":0},null,{"$f":"COUNTIFS(TradeLog[STRATEGY],B17, TradeLog[GROSS PROFIT], \">0\",TradeLog[D / M / Y],\">=\"&$J$1,TradeLog[D / M / Y],\"<=\"&$M$1, TradeLog[LIVE OR PAPER], \"PAPER\")","v":0},{"$f":"SUMIFS(TradeLog[GROSS PROFIT], TradeLog[GROSS PROFIT], \">0\", TradeLog[STRATEGY],B17,TradeLog[D / M / Y],\">=\"&$J$1,TradeLog[D / M / Y],\"<=\"&$M$1, TradeLog[LIVE OR PAPER], \"PAPER\")","v":0},0,{"$f":"MAX(IF(TradeLog[STRATEGY]=B17, IF( TradeLog[GROSS PROFIT]>0, IF( TradeLog[D / M / Y] >= $J$1, IF( TradeLog[D / M / Y] <=$M$1, TradeLog[GROSS PROFIT], \"\")))))","v":0},{"$f":"COUNTIFS(TradeLog[STRATEGY],B17, TradeLog[GROSS PROFIT], \"<=0\",TradeLog[D / M / Y],\">=\"&$J$1,TradeLog[D / M / Y],\"<=\"&$M$1, TradeLog[LIVE OR PAPER], \"PAPER\")","v":0},{"$f":"SUMIFS(TradeLog[GROSS PROFIT], TradeLog[GROSS PROFIT], \"<=0\", TradeLog[STRATEGY],B17,TradeLog[D / M / Y],\">=\"&$J$1,TradeLog[D / M / Y],\"<=\"&$M$1, TradeLog[LIVE OR PAPER], \"PAPER\")","v":0},0,{"$f":"MIN(IF(TradeLog[STRATEGY]=B17, IF( TradeLog[GROSS PROFIT]<=0, IF( TradeLog[D / M / Y] >= $J$1, IF( TradeLog[D / M / Y] <=$M$1, IF( TradeLog[LIVE OR PAPER] =\"PAPER\", TradeLog[GROSS PROFIT], \"\"))))))","v":0},{"$f":"F17+J17","v":0},0]
[null,{"$f":"Lists!H11","v":0},0,null,{"$f":"COUNTIFS(TradeLog[STRATEGY],B18, TradeLog[GROSS PROFIT], \">0\",TradeLog[D / M / Y],\">=\"&$J$1,TradeLog[D / M / Y],\"<=\"&$M$1, TradeLog[LIVE OR PAPER], \"PAPER\")","v":0},{"$f":"SUMIFS(TradeLog[GROSS PROFIT], TradeLog[GROSS PROFIT], \">0\", TradeLog[STRATEGY],B18,TradeLog[D / M / Y],\">=\"&$J$1,TradeLog[D / M / Y],\"<=\"&$M$1, TradeLog[LIVE OR PAPER], \"PAPER\")","v":0},0,{"$f":"MAX(IF(TradeLog[STRATEGY]=B18, IF( TradeLog[GROSS PROFIT]>0, IF( TradeLog[D / M / Y] >= $J$1, IF( TradeLog[D / M / Y] <=$M$1, TradeLog[GROSS PROFIT], \"\")))))","v":0},{"$f":"COUNTIFS(TradeLog[STRATEGY],B18, TradeLog[GROSS PROFIT], \"<=0\",TradeLog[D / M / Y],\">=\"&$J$1,TradeLog[D / M / Y],\"<=\"&$M$1, TradeLog[LIVE OR PAPER], \"PAPER\")","v":0},{"$f":"SUMIFS(TradeLog[GROSS PROFIT], TradeLog[GROSS PROFIT], \"<=0\", TradeLog[STRATEGY],B18,TradeLog[D / M / Y],\">=\"&$J$1,TradeLog[D / M / Y],\"<=\"&$M$1, TradeLog[LIVE OR PAPER], \"PAPER\")","v":0},0,{"$f":"MIN(IF(TradeLog[STRATEGY]=B18, IF( TradeLog[GROSS PROFIT]<=0, IF( TradeLog[D / M / Y] >= $J$1, IF( TradeLog[D / M / Y] <=$M$1, IF( TradeLog[LIVE OR PAPER] =\"PAPER\", TradeLog[GROSS PROFIT], \"\"))))))","v":0},0,0]
[]
[null,"Trading Plan","Trades",null,"Wins","Win $","Avg Win","Best","Losses","Loss $","Avg Loss","Worst","Gross Profit","Avg G. Profit"]
[100,"Followed Plan",{"$f":"E21+I21","v":0},null,{"$f":"COUNTIFS(TradeLog[FOLLOW MY PLAN?],\"Yes\", TradeLog[GROSS PROFIT], \">0\",TradeLog[D / M / Y],\">=\"&$J$1,TradeLog[D / M / Y],\"<=\"&$M$1, TradeLog[LIVE OR PAPER], \"PAPER\")","v":0},{"$f":"SUMIFS(TradeLog[GROSS PROFIT], TradeLog[GROSS PROFIT], \">0\", TradeLog[FOLLOW MY PLAN?],\"Yes\",TradeLog[D / M / Y],\">=\"&$J$1,TradeLog[D / M / Y],\"<=\"&$M$1, TradeLog[LIVE OR PAPER], \"PAPER\")","v":0},{"$f":"IFERROR(F21/E21,0)","v":0},{"$f":"MAX(IF(TradeLog[FOLLOW MY PLAN?]=\"Yes\", IF( TradeLog[GROSS PROFIT]>0, IF( TradeLog[D / M / Y] >= $J$1, IF( TradeLog[D / M / Y] <=$M$1, TradeLog[GROSS PROFIT], \"\")))))","v":0},{"$f":"COUNTIFS(TradeLog[FOLLOW MY PLAN?],\"Yes\", TradeLog[GROSS PROFIT], \"<=0\",TradeLog[D / M / Y],\">=\"&$J$1,TradeLog[D / M / Y],\"<=\"&$M$1, TradeLog[LIVE OR PAPER], \"PAPER\")","v":0},{"$f":"SUMIFS(TradeLog[GROSS PROFIT], TradeLog[GROSS PROFIT], \"<=0\", TradeLog[FOLLOW MY PLAN?],\"Yes\",TradeLog[D / M / Y],\">=\"&$J$1,TradeLog[D / M / Y],\"<=\"&$M$1, TradeLog[LIVE OR PAPER], \"PAPER\")","v":0},{"$f":"IFERROR(J21/I21,0)","v":0},{"$f":"MAX(IF(TradeLog[FOLLOW MY PLAN?]=\"Yes\", IF( TradeLog[GROSS PROFIT]<=0, IF( TradeLog[D / M / Y] >= $J$1, IF( TradeLog[D / M / Y] <=$M$1,IF( TradeLog[LIVE OR PAPER] =\"PAPER\", TradeLog[GROSS PROFIT], \"\"))))))","v":0},{"$f":"F21+J21","v":0},{"$f":"IFERROR(M21/C21,0)","v":0}]
["---","Didn't Follow Plan",{"$f":"E22+I22","v":0},null,{"$f":"COUNTIFS(TradeLog[FOLLOW MY PLAN?],\"No\", TradeLog[GROSS PROFIT], \">0\",TradeLog[D / M / Y],\">=\"&$J$1,TradeLog[D / M / Y],\"<=\"&$M$1, TradeLog[LIVE OR PAPER], \"PAPER\")","v":0},{"$f":"SUMIFS(TradeLog[GROSS PROFIT], TradeLog[GROSS PROFIT], \">0\", TradeLog[FOLLOW MY PLAN?],\"No\",TradeLog[D / M / Y],\">=\"&$J$1,TradeLog[D / M / Y],\"<=\"&$M$1, TradeLog[LIVE OR PAPER], \"PAPER\")","v":0},{"$f":"IFERROR(F22/E22,0)","v":0},{"$f":"MAX(IF(TradeLog[FOLLOW MY PLAN?]=\"No\", IF( TradeLog[GROSS PROFIT]>0, IF( TradeLog[D / M / Y] >= $J$1, IF( TradeLog[D / M / Y] <=$M$1, TradeLog[GROSS PROFIT], \"\")))))","v":0},{"$f":"COUNTIFS(TradeLog[FOLLOW MY PLAN?],\"No\", TradeLog[GROSS PROFIT], \"<=0\",TradeLog[D / M / Y],\">=\"&$J$1,TradeLog[D / M / Y],\"<=\"&$M$1, TradeLog[LIVE OR PAPER], \"PAPER\")","v":0},{"$f":"SUMIFS(TradeLog[GROSS PROFIT], TradeLog[GROSS PROFIT], \"<=0\", TradeLog[FOLLOW MY PLAN?],\"No\",TradeLog[D / M / Y],\">=\"&$J$1,TradeLog[D / M / Y],\"<=\"&$M$1, TradeLog[LIVE OR PAPER], \"PAPER\")","v":0},{"$f":"IFERROR(J22/I22,0)","v":0},{"$f":"MAX(IF(TradeLog[FOLLOW MY PLAN?]=\"No\", IF( TradeLog[GROSS PROFIT]<=0, IF( TradeLog[D / M / Y] >= $J$1, IF( TradeLog[D / M / Y] <=$M$1, IF( TradeLog[LIVE OR PAPER] =\"PAPER\", TradeLog[GROSS PROFIT], \"\"))))))","v":0},{"$f":"F22+J22","v":0},{"$f":"IFERROR(M22/C22,0)","v":0}]
[null,"WITHIN YOUR R",{"$f":"E23+I23","v":0},null,{"$f":"COUNTIFS(TradeLog[WITHIN YOUR R ?],\"Yes\", TradeLog[GROSS PROFIT], \">0\",TradeLog[D / M / Y],\">=\"&$J$1,TradeLog[D / M / Y],\"<=\"&$M$1, TradeLog[LIVE OR PAPER], \"PAPER\")","v":0},{"$f":"SUMIFS(TradeLog[GROSS PROFIT], TradeLog[GROSS PROFIT], \">0\", TradeLog[WITHIN YOUR R ?],\"Yes\",TradeLog[D / M / Y],\">=\"&$J$1,TradeLog[D / M / Y],\"<=\"&$M$1, TradeLog[LIVE OR PAPER], \"PAPER\")","v":0},{"$f":"IFERROR(F23/E23,0)","v":0},{"$f":"MAX(IF(TradeLog[WITHIN YOUR R ?]=\"Yes\", IF( TradeLog[GROSS PROFIT]>0, IF( TradeLog[D / M / Y] >= $J$1, IF( TradeLog[D / M / Y] <=$M$1, IF( TradeLog[LIVE OR PAPER] =\"PAPER\", TradeLog[GROSS PROFIT], \"\"))))))","v":0},{"$f":"COUNTIFS(TradeLog[WITHIN YOUR R ?],\"Yes\", TradeLog[GROSS PROFIT], \"<=0\",TradeLog[D / M / Y],\">=\"&$J$1,TradeLog[D / M / Y],\"<=\"&$M$1, TradeLog[LIVE OR PAPER], \"PAPER\")","v":0},{"$f":"SUMIFS(TradeLog[GROSS PROFIT], TradeLog[GROSS PROFIT], \"<=0\", TradeLog[WITHIN YOUR R ?],\"Yes\",TradeLog[D / M / Y],\">=\"&$J$1,TradeLog[D / M / Y],\"<=\"&$M$1, TradeLog[LIVE OR PAPER], \"PAPER\")","v":0},{"$f":"IFERROR(J23/I23,0)","v":0},{"$f":"MAX(IF(TradeLog[WITHIN YOUR R ?]=\"Yes\", IF( TradeLog[GROSS PROFIT]<=0, IF( TradeLog[D / M / Y] >= $J$1, IF( TradeLog[D / M / Y] <=$M$1,  IF( TradeLog[LIVE OR PAPER] =\"PAPER\", TradeLog[GROSS PROFIT], \"\"))))))","v":0},{"$f":"F23+J23","v":0},{"$f":"IFERROR(M23/C23,0)","v":0}]
[null,"OUTSIDE YOUR R",0,null,{"$f":"COUNTIFS(TradeLog[WITHIN YOUR R ?],\"No\", TradeLog[GROSS PROFIT], \">0\",TradeLog[D / M / Y],\">=\"&$J$1,TradeLog[D / M / Y],\"<=\"&$M$1, TradeLog[LIVE OR PAPER], \"PAPER\")","v":0},{"$f":"SUMIFS(TradeLog[GROSS PROFIT], TradeLog[GROSS PROFIT], \">0\", TradeLog[WITHIN YOUR R ?],\"No\",TradeLog[D / M / Y],\">=\"&$J$1,TradeLog[D / M / Y],\"<=\"&$M$1, TradeLog[LIVE OR PAPER], \"PAPER\")","v":0},0,{"$f":"MAX(IF(TradeLog[WITHIN YOUR R ?]=\"No\", IF( TradeLog[GROSS PROFIT]>0, IF( TradeLog[D / M / Y] >= $J$1, IF( TradeLog[D / M / Y] <=$M$1, IF( TradeLog[LIVE OR PAPER] =\"PAPER\", TradeLog[GROSS PROFIT], \"\"))))))","v":0},{"$f":"COUNTIFS(TradeLog[WITHIN YOUR R ?],\"No\", TradeLog[GROSS PROFIT], \"<=0\",TradeLog[D / M / Y],\">=\"&$J$1,TradeLog[D / M / Y],\"<=\"&$M$1, TradeLog[LIVE OR PAPER], \"PAPER\")","v":0},{"$f":"SUMIFS(TradeLog[GROSS PROFIT], TradeLog[GROSS PROFIT], \"<=0\", TradeLog[WITHIN YOUR R ?],\"No\",TradeLog[D / M / Y],\">=\"&$J$1,TradeLog[D / M / Y],\"<=\"&$M$1, TradeLog[LIVE OR PAPER], \"PAPER\")","v":0},0,{"$f":"MAX(IF(TradeLog[WITHIN YOUR R ?]=\"No\", IF( TradeLog[GROSS PROFIT]<=0, IF( TradeLog[D / M / Y] >= $J$1, IF( TradeLog[D / M / Y] <=$M$1, IF( TradeLog[LIVE OR PAPER] =\"PAPER\", TradeLog[GROSS PROFIT], \"\"))))))","v":0},0,0]
[]
[null,"Weekday","Trades",null,"Wins","Win $","Avg Win","Best","Losses","Loss $","Avg Loss","Worst","Gross Profit","Avg G. Profit"]
[null,"Monday",{"$f":"E27+I27","v":0},null,{"$f":"COUNTIFS(TradeLog[WeekDay],B27, TradeLog[GROSS PROFIT], \">0\",TradeLog[D / M / Y],\">=\"&$J$1,TradeLog[D / M / Y],\"<=\"&$M$1, TradeLog[LIVE OR PAPER], \"PAPER\")","v":0},{"$f":"SUMIFS(TradeLog[GROSS PROFIT], TradeLog[GROSS PROFIT], \">0\", TradeLog[WeekDay],B27,TradeLog[D / M / Y],\">=\"&$J$1,TradeLog[D / M / Y],\"<=\"&$M$1, TradeLog[LIVE OR PAPER], \"PAPER\")","v":0},{"$f":"IFERROR(F27/E27,0)","v":0},{"$f":"MAX(IF(TradeLog[WeekDay]=B27, IF( TradeLog[GROSS PROFIT]>0, IF( TradeLog[D / M / Y] >= $J$1, IF( TradeLog[D / M / Y] <=$M$1, TradeLog[GROSS PROFIT], \"\")))))","v":0},{"$f":"COUNTIFS(TradeLog[WeekDay],B27, TradeLog[GROSS PROFIT], \"<=0\",TradeLog[D / M / Y],\">=\"&$J$1,TradeLog[D / M / Y],\"<=\"&$M$1, TradeLog[LIVE OR PAPER], \"PAPER\")","v":0},{"$f":"SUMIFS(TradeLog[GROSS PROFIT], TradeLog[GROSS PROFIT], \"<=0\", TradeLog[WeekDay],B27,TradeLog[D / M / Y],\">=\"&$J$1,TradeLog[D / M / Y],\"<=\"&$M$1, TradeLog[LIVE OR PAPER], \"PAPER\")","v":0},{"$f":"IFERROR(J27/I27,0)","v":0},{"$f":"MAX(IF(TradeLog[WeekDay]=B27, IF( TradeLog[GROSS PROFIT]<=0, IF( TradeLog[D / M / Y] >= $J$1, IF( TradeLog[D / M / Y] <=$M$1, IF( TradeLog[LIVE OR PAPER] =\"PAPER\", TradeLog[GROSS PROFIT], \"\"))))))","v":0},{"$f":"F27+J27","v":0},{"$f":"IFERROR(M27/C27,0)","v":0}]
[null,"Tuesday",{"$f":"E28+I28","v":0},null,{"$f":"COUNTIFS(TradeLog[WeekDay],B28, TradeLog[GROSS PROFIT], \">0\",TradeLog[D / M / Y],\">=\"&$J$1,TradeLog[D / M / Y],\"<=\"&$M$1, TradeLog[LIVE OR PAPER], \"PAPER\")","v":0},{"$f":"SUMIFS(TradeLog[GROSS PROFIT], TradeLog[GROSS PROFIT], \">0\", TradeLog[WeekDay],B28,TradeLog[D / M / Y],\">=\"&$J$1,TradeLog[D / M / Y],\"<=\"&$M$1, TradeLog[LIVE OR PAPER], \"PAPER\")","v":0},{"$f":"IFERROR(F28/E28,0)","v":0},{"$f":"MAX(IF(TradeLog[WeekDay]=B28, IF( TradeLog[GROSS PROFIT]>0, IF( TradeLog[D / M / Y] >= $J$1, IF( TradeLog[D / M / Y] <=$M$1, TradeLog[GROSS PROFIT], \"\")))))","v":0},{"$f":"COUNTIFS(TradeLog[WeekDay],B28, TradeLog[GROSS PROFIT], \"<=0\",TradeLog[D / M / Y],\">=\"&$J$1,TradeLog[D / M / Y],\"<=\"&$M$1, TradeLog[LIVE OR PAPER], \"PAPER\")","v":0},{"$f":"SUMIFS(TradeLog[GROSS PROFIT], TradeLog[GROSS PROFIT], \"<=0\", TradeLog[WeekDay],B28,TradeLog[D / M / Y],\">=\"&$J$1,TradeLog[D / M / Y],\"<=\"&$M$1, TradeLog[LIVE OR PAPER], \"PAPER\")","v":0},{"$f":"IFERROR(J28/I28,0)","v":0},{"$f":"MAX(IF(TradeLog[WeekDay]=B28, IF( TradeLog[GROSS PROFIT]<=0, IF( TradeLog[D / M / Y] >= $J$1, IF( TradeLog[D / M / Y] <=$M$1, IF( TradeLog[LIVE OR PAPER] =\"PAPER\", TradeLog[GROSS PROFIT], \"\"))))))","v":0},{"$f":"F28+J28","v":0},{"$f":"IFERROR(M28/C28,0)","v":0}]
[null,"Wednesday",{"$f":"E29+I29","v":0},null,{"$f":"COUNTIFS(TradeLog[WeekDay],B29, TradeLog[GROSS PROFIT], \">0\",TradeLog[D / M / Y],\">=\"&$J$1,TradeLog[D / M / Y],\"<=\"&$M$1, TradeLog[LIVE OR PAPER], \"PAPER\")","v":0},{"$f":"SUMIFS(TradeLog[GROSS PROFIT], TradeLog[GROSS PROFIT], \">0\", TradeLog[WeekDay],B29,TradeLog[D / M / Y],\">=\"&$J$1,TradeLog[D / M / Y],\"<=\"&$M$1, TradeLog[LIVE OR PAPER], \"PAPER\")","v":0},{"$f":"IFERROR(F29/E29,0)","v":0},{"$f":"MAX(IF(TradeLog[WeekDay]=B29, IF( TradeLog[GROSS PROFIT]>0, IF( TradeLog[D / M / Y] >= $J$1, IF( TradeLog[D / M / Y] <=$M$1, TradeLog[GROSS PROFIT], \"\")))))","v":0},{"$f":"COUNTIFS(TradeLog[WeekDay],B29, TradeLog[GROSS PROFIT], \"<=0\",TradeLog[D / M / Y],\">=\"&$J$1,TradeLog[D / M / Y],\"<=\"&$M$1, TradeLog[LIVE OR PAPER], \"PAPER\")","v":0},{"$f":"SUMIFS(TradeLog[GROSS PROFIT], TradeLog[GROSS PROFIT], \"<=0\", TradeLog[WeekDay],B29,TradeLog[D / M / Y],\">=\"&$J$1,TradeLog[D / M / Y],\"<=\"&$M$1, TradeLog[LIVE OR PAPER], \"PAPER\")","v":0},{"$f":"IFERROR(J29/I29,0)","v":0},{"$f":"MAX(IF(TradeLog[WeekDay]=B29, IF( TradeLog[GROSS PROFIT]<=0, IF( TradeLog[D / M / Y] >= $J$1, IF( TradeLog[D / M / Y] <=$M$1, IF( TradeLog[LIVE OR PAPER] =\"PAPER\", TradeLog[GROSS PROFIT], \"\"))))))","v":0},{"$f":"F29+J29","v":0},{"$f":"IFERROR(M29/C29,0)","v":0}]
[null,"Thursday",{"$f":"E30+I30","v":0},null,{"$f":"COUNTIFS(TradeLog[WeekDay],B30, TradeLog[GROSS PROFIT], \">0\",TradeLog[D / M / Y],\">=\"&$J$1,TradeLog[D / M / Y],\"<=\"&$M$1, TradeLog[LIVE OR PAPER], \"PAPER\")","v":0},{"$f":"SUMIFS(TradeLog[GROSS PROFIT], TradeLog[GROSS PROFIT], \">0\", TradeLog[WeekDay],B30,TradeLog[D / M / Y],\">=\"&$J$1,TradeLog[D / M / Y],\"<=\"&$M$1, TradeLog[LIVE OR PAPER], \"PAPER\")","v":0},{"$f":"IFERROR(F30/E30,0)","v":0},{"$f":"MAX(IF(TradeLog[WeekDay]=B30, IF( TradeLog[GROSS PROFIT]>0, IF( TradeLog[D / M / Y] >= $J$1, IF( TradeLog[D / M / Y] <=$M$1, TradeLog[GROSS PROFIT], \"\")))))","v":0},{"$f":"COUNTIFS(TradeLog[WeekDay],B30, TradeLog[GROSS PROFIT], \"<=0\",TradeLog[D / M / Y],\">=\"&$J$1,TradeLog[D / M / Y],\"<=\"&$M$1, TradeLog[LIVE OR PAPER], \"PAPER\")","v":0},{"$f":"SUMIFS(TradeLog[GROSS PROFIT], TradeLog[GROSS PROFIT], \"<=0\", TradeLog[WeekDay],B30,TradeLog[D / M / Y],\">=\"&$J$1,TradeLog[D / M / Y],\"<=\"&$M$1, TradeLog[LIVE OR PAPER], \"PAPER\")","v":0},{"$f":"IFERROR(J30/I30,0)","v":0},{"$f":"MAX(IF(TradeLog[WeekDay]=B30, IF( TradeLog[GROSS PROFIT]<=0, IF( TradeLog[D / M / Y] >= $J$1, IF( TradeLog[D / M / Y] <=$M$1, IF( TradeLog[LIVE OR PAPER] =\"PAPER\", TradeLog[GROSS PROFIT], \"\"))))))","v":0},{"$f":"F30+J30","v":0},{"$f":"IFERROR(M30/C30,0)","v":0}]
[null,"Friday",{"$f":"E31+I31","v":0},null,{"$f":"COUNTIFS(TradeLog[WeekDay],B31, TradeLog[GROSS PROFIT], \">0\",TradeLog[D / M / Y],\">=\"&$J$1,TradeLog[D / M / Y],\"<=\"&$M$1, TradeLog[LIVE OR PAPER], \"PAPER\")","v":0},{"$f":"SUMIFS(TradeLog[GROSS PROFIT], TradeLog[GROSS PROFIT], \">0\", TradeLog[WeekDay],B31,TradeLog[D / M / Y],\">=\"&$J$1,TradeLog[D / M / Y],\"<=\"&$M$1, TradeLog[LIVE OR PAPER], \"PAPER\")","v":0},{"$f":"IFERROR(F31/E31,0)","v":0},{"$f":"MAX(IF(TradeLog[WeekDay]=B31, IF( TradeLog[GROSS PROFIT]>0, IF( TradeLog[D / M / Y] >= $J$1, IF( TradeLog[D / M / Y] <=$M$1, TradeLog[GROSS PROFIT], \"\")))))","v":0},{"$f":"COUNTIFS(TradeLog[WeekDay],B31, TradeLog[GROSS PROFIT], \"<=0\",TradeLog[D / M / Y],\">=\"&$J$1,TradeLog[D / M / Y],\"<=\"&$M$1, TradeLog[LIVE OR PAPER], \"PAPER\")","v":0},{"$f":"SUMIFS(TradeLog[GROSS PROFIT], TradeLog[GROSS PROFIT], \"<=0\", TradeLog[WeekDay],B31,TradeLog[D / M / Y],\">=\"&$J$1,TradeLog[D / M / Y],\"<=\"&$M$1, TradeLog[LIVE OR PAPER], \"PAPER\")","v":0},{"$f":"IFERROR(J31/I31,0)","v":0},{"$f":"MAX(IF(TradeLog[WeekDay]=B31, IF( TradeLog[GROSS PROFIT]<=0, IF( TradeLog[D / M / Y] >= $J$1, IF( TradeLog[D / M / Y] <=$M$1, IF( TradeLog[LIVE OR PAPER] =\"PAPER\", TradeLog[GROSS PROFIT], \"\"))))))","v":0},{"$f":"F31+J31","v":0},{"$f":"IFERROR(M31/C31,0)","v":0}]
[0.66666666666666663]
[null,"10 DAY ATR","Trades",null,"Wins","Win $","Avg Win","Best","Losses","Loss $","Avg Loss","Worst","Gross Profit","Avg G. Profit"]
[null,"Below 1",{"$f":"E34+I34","v":0},null,{"$f":"COUNTIFS(TradeLog[10 DAY ATR],\"<\" & 1, TradeLog[GROSS PROFIT], \">0\",TradeLog[D / M / Y],\">=\"&$J$1,TradeLog[D / M / Y],\"<=\"&$M$1, TradeLog[LIVE OR PAPER], \"PAPER\")","v":0},{"$f":"SUMIFS(TradeLog[GROSS PROFIT], TradeLog[GROSS PROFIT], \">0\", TradeLog[10 DAY ATR],\"<\" & 1,TradeLog[D / M / Y],\">=\"&$J$1,TradeLog[D / M / Y],\"<=\"&$M$1, TradeLog[LIVE OR PAPER], \"PAPER\")","v":0},{"$f":"IFERROR(F34/E34,0)","v":0},{"$f":"MAX(IF(TradeLog[10 DAY ATR]< 1, IF( TradeLog[GROSS PROFIT]>0, IF( TradeLog[D / M / Y] >= $J$1, IF( TradeLog[D / M / Y] <=$M$1, IF( TradeLog[LIVE OR PAPER] =\"PAPER\", TradeLog[GROSS PROFIT], \"\"))))))","v":0},{"$f":"COUNTIFS(TradeLog[10 DAY ATR],\"<\" & 1, TradeLog[GROSS PROFIT], \"<=0\",TradeLog[D / M / Y],\">=\"&$J$1,TradeLog[D / M / Y],\"<=\"&$M$1, TradeLog[LIVE OR PAPER], \"PAPER\")","v":0},{"$f":"SUMIFS(TradeLog[GROSS PROFIT], TradeLog[GROSS PROFIT], \"<=0\", TradeLog[10 DAY ATR],\"<\" & 1,TradeLog[D / M / Y],\">=\"&$J$1,TradeLog[D / M / Y],\"<=\"&$M$1, TradeLog[LIVE OR PAPER], \"PAPER\")","v":0},{"$f":"IFERROR(J34/I34,0)","v":0},{"$f":"MAX(IF(TradeLog[10 DAY ATR]< 1, IF( TradeLog[GROSS PROFIT]<0, IF( TradeLog[D / M / Y] >= $J$1, IF( TradeLog[D / M / Y] <=$M$1, IF( TradeLog[LIVE OR PAPER] =\"PAPER\", TradeLog[GROSS PROFIT], \"\"))))))","v":0},{"$f":"F34+J34","v":0},{"$f":"IFERROR(M34/C34,0)","v":0}]
[null,"1 to 3",{"$f":"E35+I35","v":0},null,{"$f":"COUNTIFS(TradeLog[10 DAY ATR],\">=\" & 1, TradeLog[10 DAY ATR],\"<\" &3, TradeLog[GROSS PROFIT], \">0\",TradeLog[D / M / Y],\">=\"&$J$1,TradeLog[D / M / Y],\"<=\"&$M$1, TradeLog[LIVE OR PAPER], \"PAPER\")","v":0},{"$f":"SUMIFS(TradeLog[GROSS PROFIT], TradeLog[GROSS PROFIT], \">0\", TradeLog[10 DAY ATR],\">=\" & 1, TradeLog[10 DAY ATR],\"<\" &3,TradeLog[D / M / Y],\">=\"&$J$1,TradeLog[D / M / Y],\"<=\"&$M$1, TradeLog[LIVE OR PAPER], \"PAPER\")","v":0},{"$f":"IFERROR(F35/E35,0)","v":0},{"$f":"MAX(IF(TradeLog[10 DAY ATR]>= 1,IF(TradeLog[10 DAY ATR]<3, IF( TradeLog[GROSS PROFIT]>0, IF( TradeLog[D / M / Y] >= $J$1, IF( TradeLog[D / M / Y] <=$M$1, IF( TradeLog[LIVE OR PAPER] =\"PAPER\", TradeLog[GROSS PROFIT], \"\")))))))","v":0},{"$f":"COUNTIFS(TradeLog[10 DAY ATR],\">=\" & 1, TradeLog[10 DAY ATR],\"<\" &3, TradeLog[GROSS PROFIT], \"<=0\",TradeLog[D / M / Y],\">=\"&$J$1,TradeLog[D / M / Y],\"<=\"&$M$1, TradeLog[LIVE OR PAPER], \"PAPER\")","v":0},{"$f":"SUMIFS(TradeLog[GROSS PROFIT], TradeLog[GROSS PROFIT], \"<=0\", TradeLog[10 DAY ATR],\">=\" & 1, TradeLog[10 DAY ATR],\"<\" &3,TradeLog[D / M / Y],\">=\"&$J$1,TradeLog[D / M / Y],\"<=\"&$M$1, TradeLog[LIVE OR PAPER], \"PAPER\")","v":0},{"$f":"IFERROR(J35/I35,0)","v":0},{"$f":"MAX(IF(TradeLog[10 DAY ATR]>= 1,IF(TradeLog[10 DAY ATR]<3, IF( TradeLog[GROSS PROFIT]<=0, IF( TradeLog[D / M / Y] >= $J$1, IF( TradeLog[D / M / Y] <=$M$1, IF( TradeLog[LIVE OR PAPER] =\"PAPER\", TradeLog[GROSS PROFIT], \"\")))))))","v":0},{"$f":"F35+J35","v":0},{"$f":"IFERROR(M35/C35,0)","v":0}]
[null,"3 to 5",{"$f":"E36+I36","v":0},null,{"$f":"COUNTIFS(TradeLog[10 DAY ATR],\">=\" & 3, TradeLog[10 DAY ATR],\"<\" & 5, TradeLog[GROSS PROFIT], \">0\",TradeLog[D / M / Y],\">=\"&$J$1,TradeLog[D / M / Y],\"<=\"&$M$1, TradeLog[LIVE OR PAPER], \"PAPER\")","v":0},{"$f":"SUMIFS(TradeLog[GROSS PROFIT], TradeLog[GROSS PROFIT], \">0\",TradeLog[10 DAY ATR],\">=\" & 3, TradeLog[10 DAY ATR],\"<\" &5,TradeLog[D / M / Y],\">=\"&$J$1,TradeLog[D / M / Y],\"<=\"&$M$1, TradeLog[LIVE OR PAPER], \"PAPER\")","v":0},{"$f":"IFERROR(F36/E36,0)","v":0},{"$f":"MAX(IF(TradeLog[10 DAY ATR]>= 3,IF(TradeLog[10 DAY ATR]<5, IF( TradeLog[GROSS PROFIT]>0, IF( TradeLog[D / M / Y] >= $J$1, IF( TradeLog[D / M / Y] <=$M$1, IF( TradeLog[LIVE OR PAPER] =\"PAPER\", TradeLog[GROSS PROFIT], \"\")))))))","v":0},{"$f":"COUNTIFS(TradeLog[10 DAY ATR],\">=\" & 3, TradeLog[10 DAY ATR],\"<\" & 5, TradeLog[GROSS PROFIT], \"<=0\",TradeLog[D / M / Y],\">=\"&$J$1,TradeLog[D / M / Y],\"<=\"&$M$1, TradeLog[LIVE OR PAPER], \"PAPER\")","v":0},{"$f":"SUMIFS(TradeLog[GROSS PROFIT], TradeLog[GROSS PROFIT], \"<=0\",TradeLog[10 DAY ATR],\">=\" & 3, TradeLog[10 DAY ATR],\"<\" &5,TradeLog[D / M / Y],\">=\"&$J$1,TradeLog[D / M / Y],\"<=\"&$M$1, TradeLog[LIVE OR PAPER], \"PAPER\")","v":0},{"$f":"IFERROR(J36/I36,0)","v":0},{"$f":"MAX(IF(TradeLog[10 DAY ATR]>= 3,IF(TradeLog[10 DAY ATR]<5, IF( TradeLog[GROSS PROFIT]<=0, IF( TradeLog[D / M / Y] >= $J$1, IF( TradeLog[D / M / Y] <=$M$1, IF( TradeLog[LIVE OR PAPER] =\"PAPER\", TradeLog[GROSS PROFIT], \"\")))))))","v":0},{"$f":"F36+J36","v":0},{"$f":"IFERROR(M36/C36,0)","v":0}]
[null,"5 to 10",{"$f":"E37+I37","v":0},null,{"$f":"COUNTIFS(TradeLog[10 DAY ATR],\">=5\", TradeLog[10 DAY ATR],\"<10\", TradeLog[GROSS PROFIT], \">0\",TradeLog[D / M / Y],\">=\"&$J$1,TradeLog[D / M / Y],\"<=\"&$M$1, TradeLog[LIVE OR PAPER], \"PAPER\")","v":0},{"$f":"SUMIFS(TradeLog[GROSS PROFIT], TradeLog[GROSS PROFIT], \">0\",TradeLog[10 DAY ATR],\">=\" & 5, TradeLog[10 DAY ATR],\"<\" &10,TradeLog[D / M / Y],\">=\"&$J$1,TradeLog[D / M / Y],\"<=\"&$M$1, TradeLog[LIVE OR PAPER], \"PAPER\")","v":0},{"$f":"IFERROR(F37/E37,0)","v":0},{"$f":"MAX(IF(TradeLog[10 DAY ATR]>= 5,IF(TradeLog[10 DAY ATR]<10, IF( TradeLog[GROSS PROFIT]>0, IF( TradeLog[D / M / Y] >= $J$1, IF( TradeLog[D / M / Y] <=$M$1, IF( TradeLog[LIVE OR PAPER] =\"PAPER\", TradeLog[GROSS PROFIT], \"\")))))))","v":0},{"$f":"COUNTIFS(TradeLog[10 DAY ATR],\">=5\", TradeLog[10 DAY ATR],\"<10\", TradeLog[GROSS PROFIT], \"<=0\",TradeLog[D / M / Y],\">=\"&$J$1,TradeLog[D / M / Y],\"<=\"&$M$1, TradeLog[LIVE OR PAPER], \"PAPER\")","v":0},{"$f":"SUMIFS(TradeLog[GROSS PROFIT], TradeLog[GROSS PROFIT], \"<=0\",TradeLog[10 DAY ATR],\">=\" & 5, TradeLog[10 DAY ATR],\"<\" &10,TradeLog[D / M / Y],\">=\"&$J$1,TradeLog[D / M / Y],\"<=\"&$M$1, TradeLog[LIVE OR PAPER], \"PAPER\")","v":0},{"$f":"IFERROR(J37/I37,0)","v":0},{"$f":"MAX(IF(TradeLog[10 DAY ATR]>= 5,IF(TradeLog[10 DAY ATR]<10, IF( TradeLog[GROSS PROFIT]<=0, IF( TradeLog[D / M / Y] >= $J$1, IF( TradeLog[D / M / Y] <=$M$1, IF( TradeLog[LIVE OR PAPER] =\"PAPER\", TradeLog[GROSS PROFIT], \"\")))))))","v":0},{"$f":"F37+J37","v":0},{"$f":"IFERROR(M37/C37,0)","v":0}]
[null,"Over 10",{"$f":"E38+I38","v":0},null,{"$f":"COUNTIFS(TradeLog[10 DAY ATR],\">=10\", TradeLog[GROSS PROFIT], \">0\",TradeLog[D / M / Y],\">=\"&$J$1,TradeLog[D / M / Y],\"<=\"&$M$1, TradeLog[LIVE OR PAPER], \"PAPER\")","v":0},{"$f":"SUMIFS(TradeLog[GROSS PROFIT], TradeLog[GROSS PROFIT], \">0\",TradeLog[10 DAY ATR],\">=\" & 10,TradeLog[D / M / Y],\">=\"&$J$1,TradeLog[D / M / Y],\"<=\"&$M$1, TradeLog[LIVE OR PAPER], \"PAPER\")","v":0},{"$f":"IFERROR(F38/E38,0)","v":0},{"$f":"MAX(IF(TradeLog[10 DAY ATR]>= 10, IF( TradeLog[GROSS PROFIT]>0, IF( TradeLog[D / M / Y] >= $J$1, IF( TradeLog[D / M / Y] <=$M$1, IF( TradeLog[LIVE OR PAPER] =\"PAPER\", TradeLog[GROSS PROFIT], \"\"))))))","v":0},{"$f":"COUNTIFS(TradeLog[10 DAY ATR],\">=10\", TradeLog[GROSS PROFIT], \"<=0\",TradeLog[D / M / Y],\">=\"&$J$1,TradeLog[D / M / Y],\"<=\"&$M$1, TradeLog[LIVE OR PAPER], \"PAPER\")","v":0},{"$f":"SUMIFS(TradeLog[GROSS PROFIT], TradeLog[GROSS PROFIT], \"<=0\",TradeLog[10 DAY ATR],\">=\" & 10,TradeLog[D / M / Y],\">=\"&$J$1,TradeLog[D / M / Y],\"<=\"&$M$1, TradeLog[LIVE OR PAPER], \"PAPER\")","v":0},{"$f":"IFERROR(J38/I38,0)","v":0},{"$f":"MAX(IF(TradeLog[10 DAY ATR]>= 10, IF( TradeLog[GROSS PROFIT]<=0, IF( TradeLog[D / M / Y] >= $J$1, IF( TradeLog[D / M / Y] <=$M$1, IF( TradeLog[LIVE OR PAPER] =\"PAPER\", TradeLog[GROSS PROFIT], \"\"))))))","v":0},{"$f":"F38+J38","v":0},{"$f":"IFERROR(M38/C38,0)","v":0}]
[0.66666666666666663]

{"sheet":"Lists","index":4,"n_rows":9,"n_cols":8,"rows_kept":9,"cut":false,"hidden":false,"merged":[]}
[]
[]
[null,"FOLLOW PLAN?",null,"LIVE OR PAPER.",null,"CALL OR PUT",null,"STRATEGY"]
[null,"Yes",null,"LIVE",null,"CALL",null,"BULL FLAG"]
[null,"No",null,"PAPER",null,"PUT",null,"BEAR FLAG"]
[null,null,null,null,null,null,null,"M PATTERN"]
[null,null,null,null,null,null,null,"W PATTERN"]
[null,null,null,null,null,null,null,"REVERSAL"]
[null,null,null,null,null,null,null,"BREAK OUT"]